{"text_format":"3","workbook":"xlsx","n_sheets":2,"sheets":["Emploi du temps","Liste des cours"],"not_rendered":{"defined_names":17},"read":"whole","date_system":"1900"}

{"sheet":"Emploi du temps","index":0,"n_rows":56,"n_cols":9,"rows_kept":56,"merged":[[0,1,1,5],[0,8,1,8]]}
[null,"EMPLOI DU TEMPS",{"$nulls":4},"DÉBUT","INTERVALLE","Liste des cours"]
[{"$nulls":6},"08:00:00","15 MIN"]
[null,"HEURE","DIMANCHE","LUNDI","MARDI","MERCREDI","JEUDI","VENDREDI","SAMEDI"]
[null,{"$f":"Début","v":"08:00:00"},{"$f":"IFERROR(INDEX(ListeCours[],MATCH(SUMPRODUCT((ListeCours[AGENDA]=EmploiDuTemps[[#Headers],[DIMANCHE]])*(ROUNDDOWN($B4,10)>=ROUNDDOWN(ListeCours[HEURE DE DÉBUT],10))*($B4<=ListeCours[HEURE DE FIN]),ListeCours[UNIQUE]),ListeCours[UNIQUE],0),2),0)","v":0},{"$f":"IFERROR(INDEX(ListeCours[],MATCH(SUMPRODUCT((ListeCours[AGENDA]=EmploiDuTemps[[#Headers],[LUNDI]])*(ROUNDDOWN($B4,10)>=ROUNDDOWN(ListeCours[HEURE DE DÉBUT],10))*($B4<=ListeCours[HEURE DE FIN]),ListeCours[UNIQUE]),ListeCours[UNIQUE],0),2),0)","v":0},{"$f":"IFERROR(INDEX(ListeCours[],MATCH(SUMPRODUCT((ListeCours[AGENDA]=EmploiDuTemps[[#Headers],[MARDI]])*(ROUNDDOWN($B4,10)>=ROUNDDOWN(ListeCours[HEURE DE DÉBUT],10))*($B4<=ListeCours[HEURE DE FIN]),ListeCours[UNIQUE]),ListeCours[UNIQUE],0),2),0)","v":0},{"$f":"IFERROR(INDEX(ListeCours[],MATCH(SUMPRODUCT((ListeCours[AGENDA]=EmploiDuTemps[[#Headers],[MERCREDI]])*(ROUNDDOWN($B4,10)>=ROUNDDOWN(ListeCours[HEURE DE DÉBUT],10))*($B4<=ListeCours[HEURE DE FIN]),ListeCours[UNIQUE]),ListeCours[UNIQUE],0),2),0)","v":0},{"$f":"IFERROR(INDEX(ListeCours[],MATCH(SUMPRODUCT((ListeCours[AGENDA]=EmploiDuTemps[[#Headers],[JEUDI]])*(ROUNDDOWN($B4,10)>=ROUNDDOWN(ListeCours[HEURE DE DÉBUT],10))*($B4<=ListeCours[HEURE DE FIN]),ListeCours[UNIQUE]),ListeCours[UNIQUE],0),2),0)","v":0},{"$f":"IFERROR(INDEX(ListeCours[],MATCH(SUMPRODUCT((ListeCours[AGENDA]=EmploiDuTemps[[#Headers],[VENDREDI]])*(ROUNDDOWN($B4,10)>=ROUNDDOWN(ListeCours[HEURE DE DÉBUT],10))*($B4<=ListeCours[HEURE DE FIN]),ListeCours[UNIQUE]),ListeCours[UNIQUE],0),2),0)","v":0},{"$f":"IFERROR(INDEX(ListeCours[],MATCH(SUMPRODUCT((ListeCours[AGENDA]=EmploiDuTemps[[#Headers],[SAMEDI]])*(ROUNDDOWN($B4,10)>=ROUNDDOWN(ListeCours[HEURE DE DÉBUT],10))*($B4<=ListeCours[HEURE DE FIN]),ListeCours[UNIQUE]),ListeCours[UNIQUE],0),2),0)","v":0}]
[null,{"$f":"B4+Incrément","v":"08:15:00"},{"$f":"IFERROR(INDEX(ListeCours[],MATCH(SUMPRODUCT((ListeCours[AGENDA]=EmploiDuTemps[[#Headers],[DIMANCHE]])*(ROUNDDOWN($B5,10)>=ROUNDDOWN(ListeCours[HEURE DE DÉBUT],10))*($B5<=ListeCours[HEURE DE FIN]),ListeCours[UNIQUE]),ListeCours[UNIQUE],0),2),0)","v":0},{"$f":"IFERROR(INDEX(ListeCours[],MATCH(SUMPRODUCT((ListeCours[AGENDA]=EmploiDuTemps[[#Headers],[LUNDI]])*(ROUNDDOWN($B5,10)>=ROUNDDOWN(ListeCours[HEURE DE DÉBUT],10))*($B5<=ListeCours[HEURE DE FIN]),ListeCours[UNIQUE]),ListeCours[UNIQUE],0),2),0)","v":"MTH-113"},{"$f":"IFERROR(INDEX(ListeCours[],MATCH(SUMPRODUCT((ListeCours[AGENDA]=EmploiDuTemps[[#Headers],[MARDI]])*(ROUNDDOWN($B5,10)>=ROUNDDOWN(ListeCours[HEURE DE DÉBUT],10))*($B5<=ListeCours[HEURE DE FIN]),ListeCours[UNIQUE]),ListeCours[UNIQUE],0),2),0)","v":0},{"$f":"IFERROR(INDEX(ListeCours[],MATCH(SUMPRODUCT((ListeCours[AGENDA]=EmploiDuTemps[[#Headers],[MERCREDI]])*(ROUNDDOWN($B5,10)>=ROUNDDOWN(ListeCours[HEURE DE DÉBUT],10))*($B5<=ListeCours[HEURE DE FIN]),ListeCours[UNIQUE]),ListeCours[UNIQUE],0),2),0)","v":"MTH-113"},{"$f":"IFERROR(INDEX(ListeCours[],MATCH(SUMPRODUCT((ListeCours[AGENDA]=EmploiDuTemps[[#Headers],[JEUDI]])*(ROUNDDOWN($B5,10)>=ROUNDDOWN(ListeCours[HEURE DE DÉBUT],10))*($B5<=ListeCours[HEURE DE FIN]),ListeCours[UNIQUE]),ListeCours[UNIQUE],0),2),0)","v":0},{"$f":"IFERROR(INDEX(ListeCours[],MATCH(SUMPRODUCT((ListeCours[AGENDA]=EmploiDuTemps[[#Headers],[VENDREDI]])*(ROUNDDOWN($B5,10)>=ROUNDDOWN(ListeCours[HEURE DE DÉBUT],10))*($B5<=ListeCours[HEURE DE FIN]),ListeCours[UNIQUE]),ListeCours[UNIQUE],0),2),0)","v":"MTH-113"},{"$f":"IFERROR(INDEX(ListeCours[],MATCH(SUMPRODUCT((ListeCours[AGENDA]=EmploiDuTemps[[#Headers],[SAMEDI]])*(ROUNDDOWN($B5,10)>=ROUNDDOWN(ListeCours[HEURE DE DÉBUT],10))*($B5<=ListeCours[HEURE DE FIN]),ListeCours[UNIQUE]),ListeCours[UNIQUE],0),2),0)","v":0}]
[null,"08:30:00",{"$f":"IFERROR(INDEX(ListeCours[],MATCH(SUMPRODUCT((ListeCours[AGENDA]=EmploiDuTemps[[#Headers],[DIMANCHE]])*(ROUNDDOWN($B6,10)>=ROUNDDOWN(ListeCours[HEURE DE DÉBUT],10))*($B6<=ListeCours[HEURE DE FIN]),ListeCours[UNIQUE]),ListeCours[UNIQUE],0),2),0)","v":0},{"$f":"IFERROR(INDEX(ListeCours[],MATCH(SUMPRODUCT((ListeCours[AGENDA]=EmploiDuTemps[[#Headers],[LUNDI]])*(ROUNDDOWN($B6,10)>=ROUNDDOWN(ListeCours[HEURE DE DÉBUT],10))*($B6<=ListeCours[HEURE DE FIN]),ListeCours[UNIQUE]),ListeCours[UNIQUE],0),2),0)","v":"MTH-113"},{"$f":"IFERROR(INDEX(ListeCours[],MATCH(SUMPRODUCT((ListeCours[AGENDA]=EmploiDuTemps[[#Headers],[MARDI]])*(ROUNDDOWN($B6,10)>=ROUNDDOWN(ListeCours[HEURE DE DÉBUT],10))*($B6<=ListeCours[HEURE DE FIN]),ListeCours[UNIQUE]),ListeCours[UNIQUE],0),2),0)","v":0},{"$f":"IFERROR(INDEX(ListeCours[],MATCH(SUMPRODUCT((ListeCours[AGENDA]=EmploiDuTemps[[#Headers],[MERCREDI]])*(ROUNDDOWN($B6,10)>=ROUNDDOWN(ListeCours[HEURE DE DÉBUT],10))*($B6<=ListeCours[HEURE DE FIN]),ListeCours[UNIQUE]),ListeCours[UNIQUE],0),2),0)","v":"MTH-113"},{"$f":"IFERROR(INDEX(ListeCours[],MATCH(SUMPRODUCT((ListeCours[AGENDA]=EmploiDuTemps[[#Headers],[JEUDI]])*(ROUNDDOWN($B6,10)>=ROUNDDOWN(ListeCours[HEURE DE DÉBUT],10))*($B6<=ListeCours[HEURE DE FIN]),ListeCours[UNIQUE]),ListeCours[UNIQUE],0),2),0)","v":0},{"$f":"IFERROR(INDEX(ListeCours[],MATCH(SUMPRODUCT((ListeCours[AGENDA]=EmploiDuTemps[[#Headers],[VENDREDI]])*(ROUNDDOWN($B6,10)>=ROUNDDOWN(ListeCours[HEURE DE DÉBUT],10))*($B6<=ListeCours[HEURE DE FIN]),ListeCours[UNIQUE]),ListeCours[UNIQUE],0),2),0)","v":"MTH-113"},{"$f":"IFERROR(INDEX(ListeCours[],MATCH(SUMPRODUCT((ListeCours[AGENDA]=EmploiDuTemps[[#Headers],[SAMEDI]])*(ROUNDDOWN($B6,10)>=ROUNDDOWN(ListeCours[HEURE DE DÉBUT],10))*($B6<=ListeCours[HEURE DE FIN]),ListeCours[UNIQUE]),ListeCours[UNIQUE],0),2),0)","v":0}]
[null,"08:45:00",{"$f":"IFERROR(INDEX(ListeCours[],MATCH(SUMPRODUCT((ListeCours[AGENDA]=EmploiDuTemps[[#Headers],[DIMANCHE]])*(ROUNDDOWN($B7,10)>=ROUNDDOWN(ListeCours[HEURE DE DÉBUT],10))*($B7<=ListeCours[HEURE DE FIN]),ListeCours[UNIQUE]),ListeCours[UNIQUE],0),2),0)","v":0},{"$f":"IFERROR(INDEX(ListeCours[],MATCH(SUMPRODUCT((ListeCours[AGENDA]=EmploiDuTemps[[#Headers],[LUNDI]])*(ROUNDDOWN($B7,10)>=ROUNDDOWN(ListeCours[HEURE DE DÉBUT],10))*($B7<=ListeCours[HEURE DE FIN]),ListeCours[UNIQUE]),ListeCours[UNIQUE],0),2),0)","v":"MTH-113"},{"$f":"IFERROR(INDEX(ListeCours[],MATCH(SUMPRODUCT((ListeCours[AGENDA]=EmploiDuTemps[[#Headers],[MARDI]])*(ROUNDDOWN($B7,10)>=ROUNDDOWN(ListeCours[HEURE DE DÉBUT],10))*($B7<=ListeCours[HEURE DE FIN]),ListeCours[UNIQUE]),ListeCours[UNIQUE],0),2),0)","v":0},{"$f":"IFERROR(INDEX(ListeCours[],MATCH(SUMPRODUCT((ListeCours[AGENDA]=EmploiDuTemps[[#Headers],[MERCREDI]])*(ROUNDDOWN($B7,10)>=ROUNDDOWN(ListeCours[HEURE DE DÉBUT],10))*($B7<=ListeCours[HEURE DE FIN]),ListeCours[UNIQUE]),ListeCours[UNIQUE],0),2),0)","v":"MTH-113"},{"$f":"IFERROR(INDEX(ListeCours[],MATCH(SUMPRODUCT((ListeCours[AGENDA]=EmploiDuTemps[[#Headers],[JEUDI]])*(ROUNDDOWN($B7,10)>=ROUNDDOWN(ListeCours[HEURE DE DÉBUT],10))*($B7<=ListeCours[HEURE DE FIN]),ListeCours[UNIQUE]),ListeCours[UNIQUE],0),2),0)","v":0},{"$f":"IFERROR(INDEX(ListeCours[],MATCH(SUMPRODUCT((ListeCours[AGENDA]=EmploiDuTemps[[#Headers],[VENDREDI]])*(ROUNDDOWN($B7,10)>=ROUNDDOWN(ListeCours[HEURE DE DÉBUT],10))*($B7<=ListeCours[HEURE DE FIN]),ListeCours[UNIQUE]),ListeCours[UNIQUE],0),2),0)","v":"MTH-113"},{"$f":"IFERROR(INDEX(ListeCours[],MATCH(SUMPRODUCT((ListeCours[AGENDA]=EmploiDuTemps[[#Headers],[SAMEDI]])*(ROUNDDOWN($B7,10)>=ROUNDDOWN(ListeCours[HEURE DE DÉBUT],10))*($B7<=ListeCours[HEURE DE FIN]),ListeCours[UNIQUE]),ListeCours[UNIQUE],0),2),0)","v":0}]
[null,"09:00:00",{"$f":"IFERROR(INDEX(ListeCours[],MATCH(SUMPRODUCT((ListeCours[AGENDA]=EmploiDuTemps[[#Headers],[DIMANCHE]])*(ROUNDDOWN($B8,10)>=ROUNDDOWN(ListeCours[HEURE DE DÉBUT],10))*($B8<=ListeCours[HEURE DE FIN]),ListeCours[UNIQUE]),ListeCours[UNIQUE],0),2),0)","v":0},{"$f":"IFERROR(INDEX(ListeCours[],MATCH(SUMPRODUCT((ListeCours[AGENDA]=EmploiDuTemps[[#Headers],[LUNDI]])*(ROUNDDOWN($B8,10)>=ROUNDDOWN(ListeCours[HEURE DE DÉBUT],10))*($B8<=ListeCours[HEURE DE FIN]),ListeCours[UNIQUE]),ListeCours[UNIQUE],0),2),0)","v":"MTH-113"},{"$f":"IFERROR(INDEX(ListeCours[],MATCH(SUMPRODUCT((ListeCours[AGENDA]=EmploiDuTemps[[#Headers],[MARDI]])*(ROUNDDOWN($B8,10)>=ROUNDDOWN(ListeCours[HEURE DE DÉBUT],10))*($B8<=ListeCours[HEURE DE FIN]),ListeCours[UNIQUE]),ListeCours[UNIQUE],0),2),0)","v":0},{"$f":"IFERROR(INDEX(ListeCours[],MATCH(SUMPRODUCT((ListeCours[AGENDA]=EmploiDuTemps[[#Headers],[MERCREDI]])*(ROUNDDOWN($B8,10)>=ROUNDDOWN(ListeCours[HEURE DE DÉBUT],10))*($B8<=ListeCours[HEURE DE FIN]),ListeCours[UNIQUE]),ListeCours[UNIQUE],0),2),0)","v":"MTH-113"},{"$f":"IFERROR(INDEX(ListeCours[],MATCH(SUMPRODUCT((ListeCours[AGENDA]=EmploiDuTemps[[#Headers],[JEUDI]])*(ROUNDDOWN($B8,10)>=ROUNDDOWN(ListeCours[HEURE DE DÉBUT],10))*($B8<=ListeCours[HEURE DE FIN]),ListeCours[UNIQUE]),ListeCours[UNIQUE],0),2),0)","v":0},{"$f":"IFERROR(INDEX(ListeCours[],MATCH(SUMPRODUCT((ListeCours[AGENDA]=EmploiDuTemps[[#Headers],[VENDREDI]])*(ROUNDDOWN($B8,10)>=ROUNDDOWN(ListeCours[HEURE DE DÉBUT],10))*($B8<=ListeCours[HEURE DE FIN]),ListeCours[UNIQUE]),ListeCours[UNIQUE],0),2),0)","v":"MTH-113"},{"$f":"IFERROR(INDEX(ListeCours[],MATCH(SUMPRODUCT((ListeCours[AGENDA]=EmploiDuTemps[[#Headers],[SAMEDI]])*(ROUNDDOWN($B8,10)>=ROUNDDOWN(ListeCours[HEURE DE DÉBUT],10))*($B8<=ListeCours[HEURE DE FIN]),ListeCours[UNIQUE]),ListeCours[UNIQUE],0),2),0)","v":0}]
[null,"09:15:00",{"$f":"IFERROR(INDEX(ListeCours[],MATCH(SUMPRODUCT((ListeCours[AGENDA]=EmploiDuTemps[[#Headers],[DIMANCHE]])*(ROUNDDOWN($B9,10)>=ROUNDDOWN(ListeCours[HEURE DE DÉBUT],10))*($B9<=ListeCours[HEURE DE FIN]),ListeCours[UNIQUE]),ListeCours[UNIQUE],0),2),0)","v":0},{"$f":"IFERROR(INDEX(ListeCours[],MATCH(SUMPRODUCT((ListeCours[AGENDA]=EmploiDuTemps[[#Headers],[LUNDI]])*(ROUNDDOWN($B9,10)>=ROUNDDOWN(ListeCours[HEURE DE DÉBUT],10))*($B9<=ListeCours[HEURE DE FIN]),ListeCours[UNIQUE]),ListeCours[UNIQUE],0),2),0)","v":"MTH-113"},{"$f":"IFERROR(INDEX(ListeCours[],MATCH(SUMPRODUCT((ListeCours[AGENDA]=EmploiDuTemps[[#Headers],[MARDI]])*(ROUNDDOWN($B9,10)>=ROUNDDOWN(ListeCours[HEURE DE DÉBUT],10))*($B9<=ListeCours[HEURE DE FIN]),ListeCours[UNIQUE]),ListeCours[UNIQUE],0),2),0)","v":0},{"$f":"IFERROR(INDEX(ListeCours[],MATCH(SUMPRODUCT((ListeCours[AGENDA]=EmploiDuTemps[[#Headers],[MERCREDI]])*(ROUNDDOWN($B9,10)>=ROUNDDOWN(ListeCours[HEURE DE DÉBUT],10))*($B9<=ListeCours[HEURE DE FIN]),ListeCours[UNIQUE]),ListeCours[UNIQUE],0),2),0)","v":"MTH-113"},{"$f":"IFERROR(INDEX(ListeCours[],MATCH(SUMPRODUCT((ListeCours[AGENDA]=EmploiDuTemps[[#Headers],[JEUDI]])*(ROUNDDOWN($B9,10)>=ROUNDDOWN(ListeCours[HEURE DE DÉBUT],10))*($B9<=ListeCours[HEURE DE FIN]),ListeCours[UNIQUE]),ListeCours[UNIQUE],0),2),0)","v":0},{"$f":"IFERROR(INDEX(ListeCours[],MATCH(SUMPRODUCT((ListeCours[AGENDA]=EmploiDuTemps[[#Headers],[VENDREDI]])*(ROUNDDOWN($B9,10)>=ROUNDDOWN(ListeCours[HEURE DE DÉBUT],10))*($B9<=ListeCours[HEURE DE FIN]),ListeCours[UNIQUE]),ListeCours[UNIQUE],0),2),0)","v":"MTH-113"},{"$f":"IFERROR(INDEX(ListeCours[],MATCH(SUMPRODUCT((ListeCours[AGENDA]=EmploiDuTemps[[#Headers],[SAMEDI]])*(ROUNDDOWN($B9,10)>=ROUNDDOWN(ListeCours[HEURE DE DÉBUT],10))*($B9<=ListeCours[HEURE DE FIN]),ListeCours[UNIQUE]),ListeCours[UNIQUE],0),2),0)","v":0}]
[null,"09:30:00",{"$f":"IFERROR(INDEX(ListeCours[],MATCH(SUMPRODUCT((ListeCours[AGENDA]=EmploiDuTemps[[#Headers],[DIMANCHE]])*(ROUNDDOWN($B10,10)>=ROUNDDOWN(ListeCours[HEURE DE DÉBUT],10))*($B10<=ListeCours[HEURE DE FIN]),ListeCours[UNIQUE]),ListeCours[UNIQUE],0),2),0)","v":0},{"$f":"IFERROR(INDEX(ListeCours[],MATCH(SUMPRODUCT((ListeCours[AGENDA]=EmploiDuTemps[[#Headers],[LUNDI]])*(ROUNDDOWN($B10,10)>=ROUNDDOWN(ListeCours[HEURE DE DÉBUT],10))*($B10<=ListeCours[HEURE DE FIN]),ListeCours[UNIQUE]),ListeCours[UNIQUE],0),2),0)","v":0},{"$f":"IFERROR(INDEX(ListeCours[],MATCH(SUMPRODUCT((ListeCours[AGENDA]=EmploiDuTemps[[#Headers],[MARDI]])*(ROUNDDOWN($B10,10)>=ROUNDDOWN(ListeCours[HEURE DE DÉBUT],10))*($B10<=ListeCours[HEURE DE FIN]),ListeCours[UNIQUE]),ListeCours[UNIQUE],0),2),0)","v":0},{"$f":"IFERROR(INDEX(ListeCours[],MATCH(SUMPRODUCT((ListeCours[AGENDA]=EmploiDuTemps[[#Headers],[MERCREDI]])*(ROUNDDOWN($B10,10)>=ROUNDDOWN(ListeCours[HEURE DE DÉBUT],10))*($B10<=ListeCours[HEURE DE FIN]),ListeCours[UNIQUE]),ListeCours[UNIQUE],0),2),0)","v":0},{"$f":"IFERROR(INDEX(ListeCours[],MATCH(SUMPRODUCT((ListeCours[AGENDA]=EmploiDuTemps[[#Headers],[JEUDI]])*(ROUNDDOWN($B10,10)>=ROUNDDOWN(ListeCours[HEURE DE DÉBUT],10))*($B10<=ListeCours[HEURE DE FIN]),ListeCours[UNIQUE]),ListeCours[UNIQUE],0),2),0)","v":0},{"$f":"IFERROR(INDEX(ListeCours[],MATCH(SUMPRODUCT((ListeCours[AGENDA]=EmploiDuTemps[[#Headers],[VENDREDI]])*(ROUNDDOWN($B10,10)>=ROUNDDOWN(ListeCours[HEURE DE DÉBUT],10))*($B10<=ListeCours[HEURE DE FIN]),ListeCours[UNIQUE]),ListeCours[UNIQUE],0),2),0)","v":0},{"$f":"IFERROR(INDEX(ListeCours[],MATCH(SUMPRODUCT((ListeCours[AGENDA]=EmploiDuTemps[[#Headers],[SAMEDI]])*(ROUNDDOWN($B10,10)>=ROUNDDOWN(ListeCours[HEURE DE DÉBUT],10))*($B10<=ListeCours[HEURE DE FIN]),ListeCours[UNIQUE]),ListeCours[UNIQUE],0),2),0)","v":0}]
[null,"09:45:00",{"$f":"IFERROR(INDEX(ListeCours[],MATCH(SUMPRODUCT((ListeCours[AGENDA]=EmploiDuTemps[[#Headers],[DIMANCHE]])*(ROUNDDOWN($B11,10)>=ROUNDDOWN(ListeCours[HEURE DE DÉBUT],10))*($B11<=ListeCours[HEURE DE FIN]),ListeCours[UNIQUE]),ListeCours[UNIQUE],0),2),0)","v":0},{"$f":"IFERROR(INDEX(ListeCours[],MATCH(SUMPRODUCT((ListeCours[AGENDA]=EmploiDuTemps[[#Headers],[LUNDI]])*(ROUNDDOWN($B11,10)>=ROUNDDOWN(ListeCours[HEURE DE DÉBUT],10))*($B11<=ListeCours[HEURE DE FIN]),ListeCours[UNIQUE]),ListeCours[UNIQUE],0),2),0)","v":0},{"$f":"IFERROR(INDEX(ListeCours[],MATCH(SUMPRODUCT((ListeCours[AGENDA]=EmploiDuTemps[[#Headers],[MARDI]])*(ROUNDDOWN($B11,10)>=ROUNDDOWN(ListeCours[HEURE DE DÉBUT],10))*($B11<=ListeCours[HEURE DE FIN]),ListeCours[UNIQUE]),ListeCours[UNIQUE],0),2),0)","v":0},{"$f":"IFERROR(INDEX(ListeCours[],MATCH(SUMPRODUCT((ListeCours[AGENDA]=EmploiDuTemps[[#Headers],[MERCREDI]])*(ROUNDDOWN($B11,10)>=ROUNDDOWN(ListeCours[HEURE DE DÉBUT],10))*($B11<=ListeCours[HEURE DE FIN]),ListeCours[UNIQUE]),ListeCours[UNIQUE],0),2),0)","v":0},{"$f":"IFERROR(INDEX(ListeCours[],MATCH(SUMPRODUCT((ListeCours[AGENDA]=EmploiDuTemps[[#Headers],[JEUDI]])*(ROUNDDOWN($B11,10)>=ROUNDDOWN(ListeCours[HEURE DE DÉBUT],10))*($B11<=ListeCours[HEURE DE FIN]),ListeCours[UNIQUE]),ListeCours[UNIQUE],0),2),0)","v":0},{"$f":"IFERROR(INDEX(ListeCours[],MATCH(SUMPRODUCT((ListeCours[AGENDA]=EmploiDuTemps[[#Headers],[VENDREDI]])*(ROUNDDOWN($B11,10)>=ROUNDDOWN(ListeCours[HEURE DE DÉBUT],10))*($B11<=ListeCours[HEURE DE FIN]),ListeCours[UNIQUE]),ListeCours[UNIQUE],0),2),0)","v":0},{"$f":"IFERROR(INDEX(ListeCours[],MATCH(SUMPRODUCT((ListeCours[AGENDA]=EmploiDuTemps[[#Headers],[SAMEDI]])*(ROUNDDOWN($B11,10)>=ROUNDDOWN(ListeCours[HEURE DE DÉBUT],10))*($B11<=ListeCours[HEURE DE FIN]),ListeCours[UNIQUE]),ListeCours[UNIQUE],0),2),0)","v":0}]
[null,"10:00:00",{"$f":"IFERROR(INDEX(ListeCours[],MATCH(SUMPRODUCT((ListeCours[AGENDA]=EmploiDuTemps[[#Headers],[DIMANCHE]])*(ROUNDDOWN($B12,10)>=ROUNDDOWN(ListeCours[HEURE DE DÉBUT],10))*($B12<=ListeCours[HEURE DE FIN]),ListeCours[UNIQUE]),ListeCours[UNIQUE],0),2),0)","v":0},{"$f":"IFERROR(INDEX(ListeCours[],MATCH(SUMPRODUCT((ListeCours[AGENDA]=EmploiDuTemps[[#Headers],[LUNDI]])*(ROUNDDOWN($B12,10)>=ROUNDDOWN(ListeCours[HEURE DE DÉBUT],10))*($B12<=ListeCours[HEURE DE FIN]),ListeCours[UNIQUE]),ListeCours[UNIQUE],0),2),0)","v":0},{"$f":"IFERROR(INDEX(ListeCours[],MATCH(SUMPRODUCT((ListeCours[AGENDA]=EmploiDuTemps[[#Headers],[MARDI]])*(ROUNDDOWN($B12,10)>=ROUNDDOWN(ListeCours[HEURE DE DÉBUT],10))*($B12<=ListeCours[HEURE DE FIN]),ListeCours[UNIQUE]),ListeCours[UNIQUE],0),2),0)","v":0},{"$f":"IFERROR(INDEX(ListeCours[],MATCH(SUMPRODUCT((ListeCours[AGENDA]=EmploiDuTemps[[#Headers],[MERCREDI]])*(ROUNDDOWN($B12,10)>=ROUNDDOWN(ListeCours[HEURE DE DÉBUT],10))*($B12<=ListeCours[HEURE DE FIN]),ListeCours[UNIQUE]),ListeCours[UNIQUE],0),2),0)","v":0},{"$f":"IFERROR(INDEX(ListeCours[],MATCH(SUMPRODUCT((ListeCours[AGENDA]=EmploiDuTemps[[#Headers],[JEUDI]])*(ROUNDDOWN($B12,10)>=ROUNDDOWN(ListeCours[HEURE DE DÉBUT],10))*($B12<=ListeCours[HEURE DE FIN]),ListeCours[UNIQUE]),ListeCours[UNIQUE],0),2),0)","v":0},{"$f":"IFERROR(INDEX(ListeCours[],MATCH(SUMPRODUCT((ListeCours[AGENDA]=EmploiDuTemps[[#Headers],[VENDREDI]])*(ROUNDDOWN($B12,10)>=ROUNDDOWN(ListeCours[HEURE DE DÉBUT],10))*($B12<=ListeCours[HEURE DE FIN]),ListeCours[UNIQUE]),ListeCours[UNIQUE],0),2),0)","v":0},{"$f":"IFERROR(INDEX(ListeCours[],MATCH(SUMPRODUCT((ListeCours[AGENDA]=EmploiDuTemps[[#Headers],[SAMEDI]])*(ROUNDDOWN($B12,10)>=ROUNDDOWN(ListeCours[HEURE DE DÉBUT],10))*($B12<=ListeCours[HEURE DE FIN]),ListeCours[UNIQUE]),ListeCours[UNIQUE],0),2),0)","v":0}]
[null,"10:15:00",{"$f":"IFERROR(INDEX(ListeCours[],MATCH(SUMPRODUCT((ListeCours[AGENDA]=EmploiDuTemps[[#Headers],[DIMANCHE]])*(ROUNDDOWN($B13,10)>=ROUNDDOWN(ListeCours[HEURE DE DÉBUT],10))*($B13<=ListeCours[HEURE DE FIN]),ListeCours[UNIQUE]),ListeCours[UNIQUE],0),2),0)","v":0},{"$f":"IFERROR(INDEX(ListeCours[],MATCH(SUMPRODUCT((ListeCours[AGENDA]=EmploiDuTemps[[#Headers],[LUNDI]])*(ROUNDDOWN($B13,10)>=ROUNDDOWN(ListeCours[HEURE DE DÉBUT],10))*($B13<=ListeCours[HEURE DE FIN]),ListeCours[UNIQUE]),ListeCours[UNIQUE],0),2),0)","v":0},{"$f":"IFERROR(INDEX(ListeCours[],MATCH(SUMPRODUCT((ListeCours[AGENDA]=EmploiDuTemps[[#Headers],[MARDI]])*(ROUNDDOWN($B13,10)>=ROUNDDOWN(ListeCours[HEURE DE DÉBUT],10))*($B13<=ListeCours[HEURE DE FIN]),ListeCours[UNIQUE]),ListeCours[UNIQUE],0),2),0)","v":0},{"$f":"IFERROR(INDEX(ListeCours[],MATCH(SUMPRODUCT((ListeCours[AGENDA]=EmploiDuTemps[[#Headers],[MERCREDI]])*(ROUNDDOWN($B13,10)>=ROUNDDOWN(ListeCours[HEURE DE DÉBUT],10))*($B13<=ListeCours[HEURE DE FIN]),ListeCours[UNIQUE]),ListeCours[UNIQUE],0),2),0)","v":0},{"$f":"IFERROR(INDEX(ListeCours[],MATCH(SUMPRODUCT((ListeCours[AGENDA]=EmploiDuTemps[[#Headers],[JEUDI]])*(ROUNDDOWN($B13,10)>=ROUNDDOWN(ListeCours[HEURE DE DÉBUT],10))*($B13<=ListeCours[HEURE DE FIN]),ListeCours[UNIQUE]),ListeCours[UNIQUE],0),2),0)","v":0},{"$f":"IFERROR(INDEX(ListeCours[],MATCH(SUMPRODUCT((ListeCours[AGENDA]=EmploiDuTemps[[#Headers],[VENDREDI]])*(ROUNDDOWN($B13,10)>=ROUNDDOWN(ListeCours[HEURE DE DÉBUT],10))*($B13<=ListeCours[HEURE DE FIN]),ListeCours[UNIQUE]),ListeCours[UNIQUE],0),2),0)","v":0},{"$f":"IFERROR(INDEX(ListeCours[],MATCH(SUMPRODUCT((ListeCours[AGENDA]=EmploiDuTemps[[#Headers],[SAMEDI]])*(ROUNDDOWN($B13,10)>=ROUNDDOWN(ListeCours[HEURE DE DÉBUT],10))*($B13<=ListeCours[HEURE DE FIN]),ListeCours[UNIQUE]),ListeCours[UNIQUE],0),2),0)","v":0}]
[null,"10:30:00",{"$f":"IFERROR(INDEX(ListeCours[],MATCH(SUMPRODUCT((ListeCours[AGENDA]=EmploiDuTemps[[#Headers],[DIMANCHE]])*(ROUNDDOWN($B14,10)>=ROUNDDOWN(ListeCours[HEURE DE DÉBUT],10))*($B14<=ListeCours[HEURE DE FIN]),ListeCours[UNIQUE]),ListeCours[UNIQUE],0),2),0)","v":0},{"$f":"IFERROR(INDEX(ListeCours[],MATCH(SUMPRODUCT((ListeCours[AGENDA]=EmploiDuTemps[[#Headers],[LUNDI]])*(ROUNDDOWN($B14,10)>=ROUNDDOWN(ListeCours[HEURE DE DÉBUT],10))*($B14<=ListeCours[HEURE DE FIN]),ListeCours[UNIQUE]),ListeCours[UNIQUE],0),2),0)","v":0},{"$f":"IFERROR(INDEX(ListeCours[],MATCH(SUMPRODUCT((ListeCours[AGENDA]=EmploiDuTemps[[#Headers],[MARDI]])*(ROUNDDOWN($B14,10)>=ROUNDDOWN(ListeCours[HEURE DE DÉBUT],10))*($B14<=ListeCours[HEURE DE FIN]),ListeCours[UNIQUE]),ListeCours[UNIQUE],0),2),0)","v":0},{"$f":"IFERROR(INDEX(ListeCours[],MATCH(SUMPRODUCT((ListeCours[AGENDA]=EmploiDuTemps[[#Headers],[MERCREDI]])*(ROUNDDOWN($B14,10)>=ROUNDDOWN(ListeCours[HEURE DE DÉBUT],10))*($B14<=ListeCours[HEURE DE FIN]),ListeCours[UNIQUE]),ListeCours[UNIQUE],0),2),0)","v":0},{"$f":"IFERROR(INDEX(ListeCours[],MATCH(SUMPRODUCT((ListeCours[AGENDA]=EmploiDuTemps[[#Headers],[JEUDI]])*(ROUNDDOWN($B14,10)>=ROUNDDOWN(ListeCours[HEURE DE DÉBUT],10))*($B14<=ListeCours[HEURE DE FIN]),ListeCours[UNIQUE]),ListeCours[UNIQUE],0),2),0)","v":0},{"$f":"IFERROR(INDEX(ListeCours[],MATCH(SUMPRODUCT((ListeCours[AGENDA]=EmploiDuTemps[[#Headers],[VENDREDI]])*(ROUNDDOWN($B14,10)>=ROUNDDOWN(ListeCours[HEURE DE DÉBUT],10))*($B14<=ListeCours[HEURE DE FIN]),ListeCours[UNIQUE]),ListeCours[UNIQUE],0),2),0)","v":0},{"$f":"IFERROR(INDEX(ListeCours[],MATCH(SUMPRODUCT((ListeCours[AGENDA]=EmploiDuTemps[[#Headers],[SAMEDI]])*(ROUNDDOWN($B14,10)>=ROUNDDOWN(ListeCours[HEURE DE DÉBUT],10))*($B14<=ListeCours[HEURE DE FIN]),ListeCours[UNIQUE]),ListeCours[UNIQUE],0),2),0)","v":0}]
[null,"10:45:00",{"$f":"IFERROR(INDEX(ListeCours[],MATCH(SUMPRODUCT((ListeCours[AGENDA]=EmploiDuTemps[[#Headers],[DIMANCHE]])*(ROUNDDOWN($B15,10)>=ROUNDDOWN(ListeCours[HEURE DE DÉBUT],10))*($B15<=ListeCours[HEURE DE FIN]),ListeCours[UNIQUE]),ListeCours[UNIQUE],0),2),0)","v":0},{"$f":"IFERROR(INDEX(ListeCours[],MATCH(SUMPRODUCT((ListeCours[AGENDA]=EmploiDuTemps[[#Headers],[LUNDI]])*(ROUNDDOWN($B15,10)>=ROUNDDOWN(ListeCours[HEURE DE DÉBUT],10))*($B15<=ListeCours[HEURE DE FIN]),ListeCours[UNIQUE]),ListeCours[UNIQUE],0),2),0)","v":0},{"$f":"IFERROR(INDEX(ListeCours[],MATCH(SUMPRODUCT((ListeCours[AGENDA]=EmploiDuTemps[[#Headers],[MARDI]])*(ROUNDDOWN($B15,10)>=ROUNDDOWN(ListeCours[HEURE DE DÉBUT],10))*($B15<=ListeCours[HEURE DE FIN]),ListeCours[UNIQUE]),ListeCours[UNIQUE],0),2),0)","v":0},{"$f":"IFERROR(INDEX(ListeCours[],MATCH(SUMPRODUCT((ListeCours[AGENDA]=EmploiDuTemps[[#Headers],[MERCREDI]])*(ROUNDDOWN($B15,10)>=ROUNDDOWN(ListeCours[HEURE DE DÉBUT],10))*($B15<=ListeCours[HEURE DE FIN]),ListeCours[UNIQUE]),ListeCours[UNIQUE],0),2),0)","v":0},{"$f":"IFERROR(INDEX(ListeCours[],MATCH(SUMPRODUCT((ListeCours[AGENDA]=EmploiDuTemps[[#Headers],[JEUDI]])*(ROUNDDOWN($B15,10)>=ROUNDDOWN(ListeCours[HEURE DE DÉBUT],10))*($B15<=ListeCours[HEURE DE FIN]),ListeCours[UNIQUE]),ListeCours[UNIQUE],0),2),0)","v":0},{"$f":"IFERROR(INDEX(ListeCours[],MATCH(SUMPRODUCT((ListeCours[AGENDA]=EmploiDuTemps[[#Headers],[VENDREDI]])*(ROUNDDOWN($B15,10)>=ROUNDDOWN(ListeCours[HEURE DE DÉBUT],10))*($B15<=ListeCours[HEURE DE FIN]),ListeCours[UNIQUE]),ListeCours[UNIQUE],0),2),0)","v":0},{"$f":"IFERROR(INDEX(ListeCours[],MATCH(SUMPRODUCT((ListeCours[AGENDA]=EmploiDuTemps[[#Headers],[SAMEDI]])*(ROUNDDOWN($B15,10)>=ROUNDDOWN(ListeCours[HEURE DE DÉBUT],10))*($B15<=ListeCours[HEURE DE FIN]),ListeCours[UNIQUE]),ListeCours[UNIQUE],0),2),0)","v":0}]
[null,"11:00:00",{"$f":"IFERROR(INDEX(ListeCours[],MATCH(SUMPRODUCT((ListeCours[AGENDA]=EmploiDuTemps[[#Headers],[DIMANCHE]])*(ROUNDDOWN($B16,10)>=ROUNDDOWN(ListeCours[HEURE DE DÉBUT],10))*($B16<=ListeCours[HEURE DE FIN]),ListeCours[UNIQUE]),ListeCours[UNIQUE],0),2),0)","v":0},{"$f":"IFERROR(INDEX(ListeCours[],MATCH(SUMPRODUCT((ListeCours[AGENDA]=EmploiDuTemps[[#Headers],[LUNDI]])*(ROUNDDOWN($B16,10)>=ROUNDDOWN(ListeCours[HEURE DE DÉBUT],10))*($B16<=ListeCours[HEURE DE FIN]),ListeCours[UNIQUE]),ListeCours[UNIQUE],0),2),0)","v":0},{"$f":"IFERROR(INDEX(ListeCours[],MATCH(SUMPRODUCT((ListeCours[AGENDA]=EmploiDuTemps[[#Headers],[MARDI]])*(ROUNDDOWN($B16,10)>=ROUNDDOWN(ListeCours[HEURE DE DÉBUT],10))*($B16<=ListeCours[HEURE DE FIN]),ListeCours[UNIQUE]),ListeCours[UNIQUE],0),2),0)","v":"HPE-295"},{"$f":"IFERROR(INDEX(ListeCours[],MATCH(SUMPRODUCT((ListeCours[AGENDA]=EmploiDuTemps[[#Headers],[MERCREDI]])*(ROUNDDOWN($B16,10)>=ROUNDDOWN(ListeCours[HEURE DE DÉBUT],10))*($B16<=ListeCours[HEURE DE FIN]),ListeCours[UNIQUE]),ListeCours[UNIQUE],0),2),0)","v":0},{"$f":"IFERROR(INDEX(ListeCours[],MATCH(SUMPRODUCT((ListeCours[AGENDA]=EmploiDuTemps[[#Headers],[JEUDI]])*(ROUNDDOWN($B16,10)>=ROUNDDOWN(ListeCours[HEURE DE DÉBUT],10))*($B16<=ListeCours[HEURE DE FIN]),ListeCours[UNIQUE]),ListeCours[UNIQUE],0),2),0)","v":"HPE-295"},{"$f":"IFERROR(INDEX(ListeCours[],MATCH(SUMPRODUCT((ListeCours[AGENDA]=EmploiDuTemps[[#Headers],[VENDREDI]])*(ROUNDDOWN($B16,10)>=ROUNDDOWN(ListeCours[HEURE DE DÉBUT],10))*($B16<=ListeCours[HEURE DE FIN]),ListeCours[UNIQUE]),ListeCours[UNIQUE],0),2),0)","v":0},{"$f":"IFERROR(INDEX(ListeCours[],MATCH(SUMPRODUCT((ListeCours[AGENDA]=EmploiDuTemps[[#Headers],[SAMEDI]])*(ROUNDDOWN($B16,10)>=ROUNDDOWN(ListeCours[HEURE DE DÉBUT],10))*($B16<=ListeCours[HEURE DE FIN]),ListeCours[UNIQUE]),ListeCours[UNIQUE],0),2),0)","v":0}]
[null,"11:15:00",{"$f":"IFERROR(INDEX(ListeCours[],MATCH(SUMPRODUCT((ListeCours[AGENDA]=EmploiDuTemps[[#Headers],[DIMANCHE]])*(ROUNDDOWN($B17,10)>=ROUNDDOWN(ListeCours[HEURE DE DÉBUT],10))*($B17<=ListeCours[HEURE DE FIN]),ListeCours[UNIQUE]),ListeCours[UNIQUE],0),2),0)","v":0},{"$f":"IFERROR(INDEX(ListeCours[],MATCH(SUMPRODUCT((ListeCours[AGENDA]=EmploiDuTemps[[#Headers],[LUNDI]])*(ROUNDDOWN($B17,10)>=ROUNDDOWN(ListeCours[HEURE DE DÉBUT],10))*($B17<=ListeCours[HEURE DE FIN]),ListeCours[UNIQUE]),ListeCours[UNIQUE],0),2),0)","v":0},{"$f":"IFERROR(INDEX(ListeCours[],MATCH(SUMPRODUCT((ListeCours[AGENDA]=EmploiDuTemps[[#Headers],[MARDI]])*(ROUNDDOWN($B17,10)>=ROUNDDOWN(ListeCours[HEURE DE DÉBUT],10))*($B17<=ListeCours[HEURE DE FIN]),ListeCours[UNIQUE]),ListeCours[UNIQUE],0),2),0)","v":"HPE-295"},{"$f":"IFERROR(INDEX(ListeCours[],MATCH(SUMPRODUCT((ListeCours[AGENDA]=EmploiDuTemps[[#Headers],[MERCREDI]])*(ROUNDDOWN($B17,10)>=ROUNDDOWN(ListeCours[HEURE DE DÉBUT],10))*($B17<=ListeCours[HEURE DE FIN]),ListeCours[UNIQUE]),ListeCours[UNIQUE],0),2),0)","v":0},{"$f":"IFERROR(INDEX(ListeCours[],MATCH(SUMPRODUCT((ListeCours[AGENDA]=EmploiDuTemps[[#Headers],[JEUDI]])*(ROUNDDOWN($B17,10)>=ROUNDDOWN(ListeCours[HEURE DE DÉBUT],10))*($B17<=ListeCours[HEURE DE FIN]),ListeCours[UNIQUE]),ListeCours[UNIQUE],0),2),0)","v":"HPE-295"},{"$f":"IFERROR(INDEX(ListeCours[],MATCH(SUMPRODUCT((ListeCours[AGENDA]=EmploiDuTemps[[#Headers],[VENDREDI]])*(ROUNDDOWN($B17,10)>=ROUNDDOWN(ListeCours[HEURE DE DÉBUT],10))*($B17<=ListeCours[HEURE DE FIN]),ListeCours[UNIQUE]),ListeCours[UNIQUE],0),2),0)","v":0},{"$f":"IFERROR(INDEX(ListeCours[],MATCH(SUMPRODUCT((ListeCours[AGENDA]=EmploiDuTemps[[#Headers],[SAMEDI]])*(ROUNDDOWN($B17,10)>=ROUNDDOWN(ListeCours[HEURE DE DÉBUT],10))*($B17<=ListeCours[HEURE DE FIN]),ListeCours[UNIQUE]),ListeCours[UNIQUE],0),2),0)","v":0}]
[null,"11:30:00",{"$f":"IFERROR(INDEX(ListeCours[],MATCH(SUMPRODUCT((ListeCours[AGENDA]=EmploiDuTemps[[#Headers],[DIMANCHE]])*(ROUNDDOWN($B18,10)>=ROUNDDOWN(ListeCours[HEURE DE DÉBUT],10))*($B18<=ListeCours[HEURE DE FIN]),ListeCours[UNIQUE]),ListeCours[UNIQUE],0),2),0)","v":0},{"$f":"IFERROR(INDEX(ListeCours[],MATCH(SUMPRODUCT((ListeCours[AGENDA]=EmploiDuTemps[[#Headers],[LUNDI]])*(ROUNDDOWN($B18,10)>=ROUNDDOWN(ListeCours[HEURE DE DÉBUT],10))*($B18<=ListeCours[HEURE DE FIN]),ListeCours[UNIQUE]),ListeCours[UNIQUE],0),2),0)","v":0},{"$f":"IFERROR(INDEX(ListeCours[],MATCH(SUMPRODUCT((ListeCours[AGENDA]=EmploiDuTemps[[#Headers],[MARDI]])*(ROUNDDOWN($B18,10)>=ROUNDDOWN(ListeCours[HEURE DE DÉBUT],10))*($B18<=ListeCours[HEURE DE FIN]),ListeCours[UNIQUE]),ListeCours[UNIQUE],0),2),0)","v":"HPE-295"},{"$f":"IFERROR(INDEX(ListeCours[],MATCH(SUMPRODUCT((ListeCours[AGENDA]=EmploiDuTemps[[#Headers],[MERCREDI]])*(ROUNDDOWN($B18,10)>=ROUNDDOWN(ListeCours[HEURE DE DÉBUT],10))*($B18<=ListeCours[HEURE DE FIN]),ListeCours[UNIQUE]),ListeCours[UNIQUE],0),2),0)","v":0},{"$f":"IFERROR(INDEX(ListeCours[],MATCH(SUMPRODUCT((ListeCours[AGENDA]=EmploiDuTemps[[#Headers],[JEUDI]])*(ROUNDDOWN($B18,10)>=ROUNDDOWN(ListeCours[HEURE DE DÉBUT],10))*($B18<=ListeCours[HEURE DE FIN]),ListeCours[UNIQUE]),ListeCours[UNIQUE],0),2),0)","v":"HPE-295"},{"$f":"IFERROR(INDEX(ListeCours[],MATCH(SUMPRODUCT((ListeCours[AGENDA]=EmploiDuTemps[[#Headers],[VENDREDI]])*(ROUNDDOWN($B18,10)>=ROUNDDOWN(ListeCours[HEURE DE DÉBUT],10))*($B18<=ListeCours[HEURE DE FIN]),ListeCours[UNIQUE]),ListeCours[UNIQUE],0),2),0)","v":0},{"$f":"IFERROR(INDEX(ListeCours[],MATCH(SUMPRODUCT((ListeCours[AGENDA]=EmploiDuTemps[[#Headers],[SAMEDI]])*(ROUNDDOWN($B18,10)>=ROUNDDOWN(ListeCours[HEURE DE DÉBUT],10))*($B18<=ListeCours[HEURE DE FIN]),ListeCours[UNIQUE]),ListeCours[UNIQUE],0),2),0)","v":0}]
[null,"11:45:00",{"$f":"IFERROR(INDEX(ListeCours[],MATCH(SUMPRODUCT((ListeCours[AGENDA]=EmploiDuTemps[[#Headers],[DIMANCHE]])*(ROUNDDOWN($B19,10)>=ROUNDDOWN(ListeCours[HEURE DE DÉBUT],10))*($B19<=ListeCours[HEURE DE FIN]),ListeCours[UNIQUE]),ListeCours[UNIQUE],0),2),0)","v":0},{"$f":"IFERROR(INDEX(ListeCours[],MATCH(SUMPRODUCT((ListeCours[AGENDA]=EmploiDuTemps[[#Headers],[LUNDI]])*(ROUNDDOWN($B19,10)>=ROUNDDOWN(ListeCours[HEURE DE DÉBUT],10))*($B19<=ListeCours[HEURE DE FIN]),ListeCours[UNIQUE]),ListeCours[UNIQUE],0),2),0)","v":0},{"$f":"IFERROR(INDEX(ListeCours[],MATCH(SUMPRODUCT((ListeCours[AGENDA]=EmploiDuTemps[[#Headers],[MARDI]])*(ROUNDDOWN($B19,10)>=ROUNDDOWN(ListeCours[HEURE DE DÉBUT],10))*($B19<=ListeCours[HEURE DE FIN]),ListeCours[UNIQUE]),ListeCours[UNIQUE],0),2),0)","v":"HPE-295"},{"$f":"IFERROR(INDEX(ListeCours[],MATCH(SUMPRODUCT((ListeCours[AGENDA]=EmploiDuTemps[[#Headers],[MERCREDI]])*(ROUNDDOWN($B19,10)>=ROUNDDOWN(ListeCours[HEURE DE DÉBUT],10))*($B19<=ListeCours[HEURE DE FIN]),ListeCours[UNIQUE]),ListeCours[UNIQUE],0),2),0)","v":0},{"$f":"IFERROR(INDEX(ListeCours[],MATCH(SUMPRODUCT((ListeCours[AGENDA]=EmploiDuTemps[[#Headers],[JEUDI]])*(ROUNDDOWN($B19,10)>=ROUNDDOWN(ListeCours[HEURE DE DÉBUT],10))*($B19<=ListeCours[HEURE DE FIN]),ListeCours[UNIQUE]),ListeCours[UNIQUE],0),2),0)","v":"HPE-295"},{"$f":"IFERROR(INDEX(ListeCours[],MATCH(SUMPRODUCT((ListeCours[AGENDA]=EmploiDuTemps[[#Headers],[VENDREDI]])*(ROUNDDOWN($B19,10)>=ROUNDDOWN(ListeCours[HEURE DE DÉBUT],10))*($B19<=ListeCours[HEURE DE FIN]),ListeCours[UNIQUE]),ListeCours[UNIQUE],0),2),0)","v":0},{"$f":"IFERROR(INDEX(ListeCours[],MATCH(SUMPRODUCT((ListeCours[AGENDA]=EmploiDuTemps[[#Headers],[SAMEDI]])*(ROUNDDOWN($B19,10)>=ROUNDDOWN(ListeCours[HEURE DE DÉBUT],10))*($B19<=ListeCours[HEURE DE FIN]),ListeCours[UNIQUE]),ListeCours[UNIQUE],0),2),0)","v":0}]
[null,"12:00:00",{"$f":"IFERROR(INDEX(ListeCours[],MATCH(SUMPRODUCT((ListeCours[AGENDA]=EmploiDuTemps[[#Headers],[DIMANCHE]])*(ROUNDDOWN($B20,10)>=ROUNDDOWN(ListeCours[HEURE DE DÉBUT],10))*($B20<=ListeCours[HEURE DE FIN]),ListeCours[UNIQUE]),ListeCours[UNIQUE],0),2),0)","v":0},{"$f":"IFERROR(INDEX(ListeCours[],MATCH(SUMPRODUCT((ListeCours[AGENDA]=EmploiDuTemps[[#Headers],[LUNDI]])*(ROUNDDOWN($B20,10)>=ROUNDDOWN(ListeCours[HEURE DE DÉBUT],10))*($B20<=ListeCours[HEURE DE FIN]),ListeCours[UNIQUE]),ListeCours[UNIQUE],0),2),0)","v":0},{"$f":"IFERROR(INDEX(ListeCours[],MATCH(SUMPRODUCT((ListeCours[AGENDA]=EmploiDuTemps[[#Headers],[MARDI]])*(ROUNDDOWN($B20,10)>=ROUNDDOWN(ListeCours[HEURE DE DÉBUT],10))*($B20<=ListeCours[HEURE DE FIN]),ListeCours[UNIQUE]),ListeCours[UNIQUE],0),2),0)","v":"HPE-295"},{"$f":"IFERROR(INDEX(ListeCours[],MATCH(SUMPRODUCT((ListeCours[AGENDA]=EmploiDuTemps[[#Headers],[MERCREDI]])*(ROUNDDOWN($B20,10)>=ROUNDDOWN(ListeCours[HEURE DE DÉBUT],10))*($B20<=ListeCours[HEURE DE FIN]),ListeCours[UNIQUE]),ListeCours[UNIQUE],0),2),0)","v":0},{"$f":"IFERROR(INDEX(ListeCours[],MATCH(SUMPRODUCT((ListeCours[AGENDA]=EmploiDuTemps[[#Headers],[JEUDI]])*(ROUNDDOWN($B20,10)>=ROUNDDOWN(ListeCours[HEURE DE DÉBUT],10))*($B20<=ListeCours[HEURE DE FIN]),ListeCours[UNIQUE]),ListeCours[UNIQUE],0),2),0)","v":"HPE-295"},{"$f":"IFERROR(INDEX(ListeCours[],MATCH(SUMPRODUCT((ListeCours[AGENDA]=EmploiDuTemps[[#Headers],[VENDREDI]])*(ROUNDDOWN($B20,10)>=ROUNDDOWN(ListeCours[HEURE DE DÉBUT],10))*($B20<=ListeCours[HEURE DE FIN]),ListeCours[UNIQUE]),ListeCours[UNIQUE],0),2),0)","v":0},{"$f":"IFERROR(INDEX(ListeCours[],MATCH(SUMPRODUCT((ListeCours[AGENDA]=EmploiDuTemps[[#Headers],[SAMEDI]])*(ROUNDDOWN($B20,10)>=ROUNDDOWN(ListeCours[HEURE DE DÉBUT],10))*($B20<=ListeCours[HEURE DE FIN]),ListeCours[UNIQUE]),ListeCours[UNIQUE],0),2),0)","v":0}]
[null,"12:15:00",{"$f":"IFERROR(INDEX(ListeCours[],MATCH(SUMPRODUCT((ListeCours[AGENDA]=EmploiDuTemps[[#Headers],[DIMANCHE]])*(ROUNDDOWN($B21,10)>=ROUNDDOWN(ListeCours[HEURE DE DÉBUT],10))*($B21<=ListeCours[HEURE DE FIN]),ListeCours[UNIQUE]),ListeCours[UNIQUE],0),2),0)","v":0},{"$f":"IFERROR(INDEX(ListeCours[],MATCH(SUMPRODUCT((ListeCours[AGENDA]=EmploiDuTemps[[#Headers],[LUNDI]])*(ROUNDDOWN($B21,10)>=ROUNDDOWN(ListeCours[HEURE DE DÉBUT],10))*($B21<=ListeCours[HEURE DE FIN]),ListeCours[UNIQUE]),ListeCours[UNIQUE],0),2),0)","v":0},{"$f":"IFERROR(INDEX(ListeCours[],MATCH(SUMPRODUCT((ListeCours[AGENDA]=EmploiDuTemps[[#Headers],[MARDI]])*(ROUNDDOWN($B21,10)>=ROUNDDOWN(ListeCours[HEURE DE DÉBUT],10))*($B21<=ListeCours[HEURE DE FIN]),ListeCours[UNIQUE]),ListeCours[UNIQUE],0),2),0)","v":0},{"$f":"IFERROR(INDEX(ListeCours[],MATCH(SUMPRODUCT((ListeCours[AGENDA]=EmploiDuTemps[[#Headers],[MERCREDI]])*(ROUNDDOWN($B21,10)>=ROUNDDOWN(ListeCours[HEURE DE DÉBUT],10))*($B21<=ListeCours[HEURE DE FIN]),ListeCours[UNIQUE]),ListeCours[UNIQUE],0),2),0)","v":0},{"$f":"IFERROR(INDEX(ListeCours[],MATCH(SUMPRODUCT((ListeCours[AGENDA]=EmploiDuTemps[[#Headers],[JEUDI]])*(ROUNDDOWN($B21,10)>=ROUNDDOWN(ListeCours[HEURE DE DÉBUT],10))*($B21<=ListeCours[HEURE DE FIN]),ListeCours[UNIQUE]),ListeCours[UNIQUE],0),2),0)","v":0},{"$f":"IFERROR(INDEX(ListeCours[],MATCH(SUMPRODUCT((ListeCours[AGENDA]=EmploiDuTemps[[#Headers],[VENDREDI]])*(ROUNDDOWN($B21,10)>=ROUNDDOWN(ListeCours[HEURE DE DÉBUT],10))*($B21<=ListeCours[HEURE DE FIN]),ListeCours[UNIQUE]),ListeCours[UNIQUE],0),2),0)","v":0},{"$f":"IFERROR(INDEX(ListeCours[],MATCH(SUMPRODUCT((ListeCours[AGENDA]=EmploiDuTemps[[#Headers],[SAMEDI]])*(ROUNDDOWN($B21,10)>=ROUNDDOWN(ListeCours[HEURE DE DÉBUT],10))*($B21<=ListeCours[HEURE DE FIN]),ListeCours[UNIQUE]),ListeCours[UNIQUE],0),2),0)","v":0}]
[null,"12:30:00",{"$f":"IFERROR(INDEX(ListeCours[],MATCH(SUMPRODUCT((ListeCours[AGENDA]=EmploiDuTemps[[#Headers],[DIMANCHE]])*(ROUNDDOWN($B22,10)>=ROUNDDOWN(ListeCours[HEURE DE DÉBUT],10))*($B22<=ListeCours[HEURE DE FIN]),ListeCours[UNIQUE]),ListeCours[UNIQUE],0),2),0)","v":0},{"$f":"IFERROR(INDEX(ListeCours[],MATCH(SUMPRODUCT((ListeCours[AGENDA]=EmploiDuTemps[[#Headers],[LUNDI]])*(ROUNDDOWN($B22,10)>=ROUNDDOWN(ListeCours[HEURE DE DÉBUT],10))*($B22<=ListeCours[HEURE DE FIN]),ListeCours[UNIQUE]),ListeCours[UNIQUE],0),2),0)","v":0},{"$f":"IFERROR(INDEX(ListeCours[],MATCH(SUMPRODUCT((ListeCours[AGENDA]=EmploiDuTemps[[#Headers],[MARDI]])*(ROUNDDOWN($B22,10)>=ROUNDDOWN(ListeCours[HEURE DE DÉBUT],10))*($B22<=ListeCours[HEURE DE FIN]),ListeCours[UNIQUE]),ListeCours[UNIQUE],0),2),0)","v":0},{"$f":"IFERROR(INDEX(ListeCours[],MATCH(SUMPRODUCT((ListeCours[AGENDA]=EmploiDuTemps[[#Headers],[MERCREDI]])*(ROUNDDOWN($B22,10)>=ROUNDDOWN(ListeCours[HEURE DE DÉBUT],10))*($B22<=ListeCours[HEURE DE FIN]),ListeCours[UNIQUE]),ListeCours[UNIQUE],0),2),0)","v":0},{"$f":"IFERROR(INDEX(ListeCours[],MATCH(SUMPRODUCT((ListeCours[AGENDA]=EmploiDuTemps[[#Headers],[JEUDI]])*(ROUNDDOWN($B22,10)>=ROUNDDOWN(ListeCours[HEURE DE DÉBUT],10))*($B22<=ListeCours[HEURE DE FIN]),ListeCours[UNIQUE]),ListeCours[UNIQUE],0),2),0)","v":0},{"$f":"IFERROR(INDEX(ListeCours[],MATCH(SUMPRODUCT((ListeCours[AGENDA]=EmploiDuTemps[[#Headers],[VENDREDI]])*(ROUNDDOWN($B22,10)>=ROUNDDOWN(ListeCours[HEURE DE DÉBUT],10))*($B22<=ListeCours[HEURE DE FIN]),ListeCours[UNIQUE]),ListeCours[UNIQUE],0),2),0)","v":0},{"$f":"IFERROR(INDEX(ListeCours[],MATCH(SUMPRODUCT((ListeCours[AGENDA]=EmploiDuTemps[[#Headers],[SAMEDI]])*(ROUNDDOWN($B22,10)>=ROUNDDOWN(ListeCours[HEURE DE DÉBUT],10))*($B22<=ListeCours[HEURE DE FIN]),ListeCours[UNIQUE]),ListeCours[UNIQUE],0),2),0)","v":0}]
[null,"12:45:00",{"$f":"IFERROR(INDEX(ListeCours[],MATCH(SUMPRODUCT((ListeCours[AGENDA]=EmploiDuTemps[[#Headers],[DIMANCHE]])*(ROUNDDOWN($B23,10)>=ROUNDDOWN(ListeCours[HEURE DE DÉBUT],10))*($B23<=ListeCours[HEURE DE FIN]),ListeCours[UNIQUE]),ListeCours[UNIQUE],0),2),0)","v":0},{"$f":"IFERROR(INDEX(ListeCours[],MATCH(SUMPRODUCT((ListeCours[AGENDA]=EmploiDuTemps[[#Headers],[LUNDI]])*(ROUNDDOWN($B23,10)>=ROUNDDOWN(ListeCours[HEURE DE DÉBUT],10))*($B23<=ListeCours[HEURE DE FIN]),ListeCours[UNIQUE]),ListeCours[UNIQUE],0),2),0)","v":0},{"$f":"IFERROR(INDEX(ListeCours[],MATCH(SUMPRODUCT((ListeCours[AGENDA]=EmploiDuTemps[[#Headers],[MARDI]])*(ROUNDDOWN($B23,10)>=ROUNDDOWN(ListeCours[HEURE DE DÉBUT],10))*($B23<=ListeCours[HEURE DE FIN]),ListeCours[UNIQUE]),ListeCours[UNIQUE],0),2),0)","v":0},{"$f":"IFERROR(INDEX(ListeCours[],MATCH(SUMPRODUCT((ListeCours[AGENDA]=EmploiDuTemps[[#Headers],[MERCREDI]])*(ROUNDDOWN($B23,10)>=ROUNDDOWN(ListeCours[HEURE DE DÉBUT],10))*($B23<=ListeCours[HEURE DE FIN]),ListeCours[UNIQUE]),ListeCours[UNIQUE],0),2),0)","v":0},{"$f":"IFERROR(INDEX(ListeCours[],MATCH(SUMPRODUCT((ListeCours[AGENDA]=EmploiDuTemps[[#Headers],[JEUDI]])*(ROUNDDOWN($B23,10)>=ROUNDDOWN(ListeCours[HEURE DE DÉBUT],10))*($B23<=ListeCours[HEURE DE FIN]),ListeCours[UNIQUE]),ListeCours[UNIQUE],0),2),0)","v":0},{"$f":"IFERROR(INDEX(ListeCours[],MATCH(SUMPRODUCT((ListeCours[AGENDA]=EmploiDuTemps[[#Headers],[VENDREDI]])*(ROUNDDOWN($B23,10)>=ROUNDDOWN(ListeCours[HEURE DE DÉBUT],10))*($B23<=ListeCours[HEURE DE FIN]),ListeCours[UNIQUE]),ListeCours[UNIQUE],0),2),0)","v":0},{"$f":"IFERROR(INDEX(ListeCours[],MATCH(SUMPRODUCT((ListeCours[AGENDA]=EmploiDuTemps[[#Headers],[SAMEDI]])*(ROUNDDOWN($B23,10)>=ROUNDDOWN(ListeCours[HEURE DE DÉBUT],10))*($B23<=ListeCours[HEURE DE FIN]),ListeCours[UNIQUE]),ListeCours[UNIQUE],0),2),0)","v":0}]
[null,"13:00:00",{"$f":"IFERROR(INDEX(ListeCours[],MATCH(SUMPRODUCT((ListeCours[AGENDA]=EmploiDuTemps[[#Headers],[DIMANCHE]])*(ROUNDDOWN($B24,10)>=ROUNDDOWN(ListeCours[HEURE DE DÉBUT],10))*($B24<=ListeCours[HEURE DE FIN]),ListeCours[UNIQUE]),ListeCours[UNIQUE],0),2),0)","v":0},{"$f":"IFERROR(INDEX(ListeCours[],MATCH(SUMPRODUCT((ListeCours[AGENDA]=EmploiDuTemps[[#Headers],[LUNDI]])*(ROUNDDOWN($B24,10)>=ROUNDDOWN(ListeCours[HEURE DE DÉBUT],10))*($B24<=ListeCours[HEURE DE FIN]),ListeCours[UNIQUE]),ListeCours[UNIQUE],0),2),0)","v":"WR-121"},{"$f":"IFERROR(INDEX(ListeCours[],MATCH(SUMPRODUCT((ListeCours[AGENDA]=EmploiDuTemps[[#Headers],[MARDI]])*(ROUNDDOWN($B24,10)>=ROUNDDOWN(ListeCours[HEURE DE DÉBUT],10))*($B24<=ListeCours[HEURE DE FIN]),ListeCours[UNIQUE]),ListeCours[UNIQUE],0),2),0)","v":0},{"$f":"IFERROR(INDEX(ListeCours[],MATCH(SUMPRODUCT((ListeCours[AGENDA]=EmploiDuTemps[[#Headers],[MERCREDI]])*(ROUNDDOWN($B24,10)>=ROUNDDOWN(ListeCours[HEURE DE DÉBUT],10))*($B24<=ListeCours[HEURE DE FIN]),ListeCours[UNIQUE]),ListeCours[UNIQUE],0),2),0)","v":"WR-121"},{"$f":"IFERROR(INDEX(ListeCours[],MATCH(SUMPRODUCT((ListeCours[AGENDA]=EmploiDuTemps[[#Headers],[JEUDI]])*(ROUNDDOWN($B24,10)>=ROUNDDOWN(ListeCours[HEURE DE DÉBUT],10))*($B24<=ListeCours[HEURE DE FIN]),ListeCours[UNIQUE]),ListeCours[UNIQUE],0),2),0)","v":0},{"$f":"IFERROR(INDEX(ListeCours[],MATCH(SUMPRODUCT((ListeCours[AGENDA]=EmploiDuTemps[[#Headers],[VENDREDI]])*(ROUNDDOWN($B24,10)>=ROUNDDOWN(ListeCours[HEURE DE DÉBUT],10))*($B24<=ListeCours[HEURE DE FIN]),ListeCours[UNIQUE]),ListeCours[UNIQUE],0),2),0)","v":0},{"$f":"IFERROR(INDEX(ListeCours[],MATCH(SUMPRODUCT((ListeCours[AGENDA]=EmploiDuTemps[[#Headers],[SAMEDI]])*(ROUNDDOWN($B24,10)>=ROUNDDOWN(ListeCours[HEURE DE DÉBUT],10))*($B24<=ListeCours[HEURE DE FIN]),ListeCours[UNIQUE]),ListeCours[UNIQUE],0),2),0)","v":0}]
[null,"13:15:00",{"$f":"IFERROR(INDEX(ListeCours[],MATCH(SUMPRODUCT((ListeCours[AGENDA]=EmploiDuTemps[[#Headers],[DIMANCHE]])*(ROUNDDOWN($B25,10)>=ROUNDDOWN(ListeCours[HEURE DE DÉBUT],10))*($B25<=ListeCours[HEURE DE FIN]),ListeCours[UNIQUE]),ListeCours[UNIQUE],0),2),0)","v":0},{"$f":"IFERROR(INDEX(ListeCours[],MATCH(SUMPRODUCT((ListeCours[AGENDA]=EmploiDuTemps[[#Headers],[LUNDI]])*(ROUNDDOWN($B25,10)>=ROUNDDOWN(ListeCours[HEURE DE DÉBUT],10))*($B25<=ListeCours[HEURE DE FIN]),ListeCours[UNIQUE]),ListeCours[UNIQUE],0),2),0)","v":"WR-121"},{"$f":"IFERROR(INDEX(ListeCours[],MATCH(SUMPRODUCT((ListeCours[AGENDA]=EmploiDuTemps[[#Headers],[MARDI]])*(ROUNDDOWN($B25,10)>=ROUNDDOWN(ListeCours[HEURE DE DÉBUT],10))*($B25<=ListeCours[HEURE DE FIN]),ListeCours[UNIQUE]),ListeCours[UNIQUE],0),2),0)","v":0},{"$f":"IFERROR(INDEX(ListeCours[],MATCH(SUMPRODUCT((ListeCours[AGENDA]=EmploiDuTemps[[#Headers],[MERCREDI]])*(ROUNDDOWN($B25,10)>=ROUNDDOWN(ListeCours[HEURE DE DÉBUT],10))*($B25<=ListeCours[HEURE DE FIN]),ListeCours[UNIQUE]),ListeCours[UNIQUE],0),2),0)","v":"WR-121"},{"$f":"IFERROR(INDEX(ListeCours[],MATCH(SUMPRODUCT((ListeCours[AGENDA]=EmploiDuTemps[[#Headers],[JEUDI]])*(ROUNDDOWN($B25,10)>=ROUNDDOWN(ListeCours[HEURE DE DÉBUT],10))*($B25<=ListeCours[HEURE DE FIN]),ListeCours[UNIQUE]),ListeCours[UNIQUE],0),2),0)","v":0},{"$f":"IFERROR(INDEX(ListeCours[],MATCH(SUMPRODUCT((ListeCours[AGENDA]=EmploiDuTemps[[#Headers],[VENDREDI]])*(ROUNDDOWN($B25,10)>=ROUNDDOWN(ListeCours[HEURE DE DÉBUT],10))*($B25<=ListeCours[HEURE DE FIN]),ListeCours[UNIQUE]),ListeCours[UNIQUE],0),2),0)","v":0},{"$f":"IFERROR(INDEX(ListeCours[],MATCH(SUMPRODUCT((ListeCours[AGENDA]=EmploiDuTemps[[#Headers],[SAMEDI]])*(ROUNDDOWN($B25,10)>=ROUNDDOWN(ListeCours[HEURE DE DÉBUT],10))*($B25<=ListeCours[HEURE DE FIN]),ListeCours[UNIQUE]),ListeCours[UNIQUE],0),2),0)","v":0}]
[null,"13:30:00",{"$f":"IFERROR(INDEX(ListeCours[],MATCH(SUMPRODUCT((ListeCours[AGENDA]=EmploiDuTemps[[#Headers],[DIMANCHE]])*(ROUNDDOWN($B26,10)>=ROUNDDOWN(ListeCours[HEURE DE DÉBUT],10))*($B26<=ListeCours[HEURE DE FIN]),ListeCours[UNIQUE]),ListeCours[UNIQUE],0),2),0)","v":0},{"$f":"IFERROR(INDEX(ListeCours[],MATCH(SUMPRODUCT((ListeCours[AGENDA]=EmploiDuTemps[[#Headers],[LUNDI]])*(ROUNDDOWN($B26,10)>=ROUNDDOWN(ListeCours[HEURE DE DÉBUT],10))*($B26<=ListeCours[HEURE DE FIN]),ListeCours[UNIQUE]),ListeCours[UNIQUE],0),2),0)","v":"WR-121"},{"$f":"IFERROR(INDEX(ListeCours[],MATCH(SUMPRODUCT((ListeCours[AGENDA]=EmploiDuTemps[[#Headers],[MARDI]])*(ROUNDDOWN($B26,10)>=ROUNDDOWN(ListeCours[HEURE DE DÉBUT],10))*($B26<=ListeCours[HEURE DE FIN]),ListeCours[UNIQUE]),ListeCours[UNIQUE],0),2),0)","v":0},{"$f":"IFERROR(INDEX(ListeCours[],MATCH(SUMPRODUCT((ListeCours[AGENDA]=EmploiDuTemps[[#Headers],[MERCREDI]])*(ROUNDDOWN($B26,10)>=ROUNDDOWN(ListeCours[HEURE DE DÉBUT],10))*($B26<=ListeCours[HEURE DE FIN]),ListeCours[UNIQUE]),ListeCours[UNIQUE],0),2),0)","v":"WR-121"},{"$f":"IFERROR(INDEX(ListeCours[],MATCH(SUMPRODUCT((ListeCours[AGENDA]=EmploiDuTemps[[#Headers],[JEUDI]])*(ROUNDDOWN($B26,10)>=ROUNDDOWN(ListeCours[HEURE DE DÉBUT],10))*($B26<=ListeCours[HEURE DE FIN]),ListeCours[UNIQUE]),ListeCours[UNIQUE],0),2),0)","v":0},{"$f":"IFERROR(INDEX(ListeCours[],MATCH(SUMPRODUCT((ListeCours[AGENDA]=EmploiDuTemps[[#Headers],[VENDREDI]])*(ROUNDDOWN($B26,10)>=ROUNDDOWN(ListeCours[HEURE DE DÉBUT],10))*($B26<=ListeCours[HEURE DE FIN]),ListeCours[UNIQUE]),ListeCours[UNIQUE],0),2),0)","v":0},{"$f":"IFERROR(INDEX(ListeCours[],MATCH(SUMPRODUCT((ListeCours[AGENDA]=EmploiDuTemps[[#Headers],[SAMEDI]])*(ROUNDDOWN($B26,10)>=ROUNDDOWN(ListeCours[HEURE DE DÉBUT],10))*($B26<=ListeCours[HEURE DE FIN]),ListeCours[UNIQUE]),ListeCours[UNIQUE],0),2),0)","v":0}]
[null,"13:45:00",{"$f":"IFERROR(INDEX(ListeCours[],MATCH(SUMPRODUCT((ListeCours[AGENDA]=EmploiDuTemps[[#Headers],[DIMANCHE]])*(ROUNDDOWN($B27,10)>=ROUNDDOWN(ListeCours[HEURE DE DÉBUT],10))*($B27<=ListeCours[HEURE DE FIN]),ListeCours[UNIQUE]),ListeCours[UNIQUE],0),2),0)","v":0},{"$f":"IFERROR(INDEX(ListeCours[],MATCH(SUMPRODUCT((ListeCours[AGENDA]=EmploiDuTemps[[#Headers],[LUNDI]])*(ROUNDDOWN($B27,10)>=ROUNDDOWN(ListeCours[HEURE DE DÉBUT],10))*($B27<=ListeCours[HEURE DE FIN]),ListeCours[UNIQUE]),ListeCours[UNIQUE],0),2),0)","v":"WR-121"},{"$f":"IFERROR(INDEX(ListeCours[],MATCH(SUMPRODUCT((ListeCours[AGENDA]=EmploiDuTemps[[#Headers],[MARDI]])*(ROUNDDOWN($B27,10)>=ROUNDDOWN(ListeCours[HEURE DE DÉBUT],10))*($B27<=ListeCours[HEURE DE FIN]),ListeCours[UNIQUE]),ListeCours[UNIQUE],0),2),0)","v":0},{"$f":"IFERROR(INDEX(ListeCours[],MATCH(SUMPRODUCT((ListeCours[AGENDA]=EmploiDuTemps[[#Headers],[MERCREDI]])*(ROUNDDOWN($B27,10)>=ROUNDDOWN(ListeCours[HEURE DE DÉBUT],10))*($B27<=ListeCours[HEURE DE FIN]),ListeCours[UNIQUE]),ListeCours[UNIQUE],0),2),0)","v":"WR-121"},{"$f":"IFERROR(INDEX(ListeCours[],MATCH(SUMPRODUCT((ListeCours[AGENDA]=EmploiDuTemps[[#Headers],[JEUDI]])*(ROUNDDOWN($B27,10)>=ROUNDDOWN(ListeCours[HEURE DE DÉBUT],10))*($B27<=ListeCours[HEURE DE FIN]),ListeCours[UNIQUE]),ListeCours[UNIQUE],0),2),0)","v":0},{"$f":"IFERROR(INDEX(ListeCours[],MATCH(SUMPRODUCT((ListeCours[AGENDA]=EmploiDuTemps[[#Headers],[VENDREDI]])*(ROUNDDOWN($B27,10)>=ROUNDDOWN(ListeCours[HEURE DE DÉBUT],10))*($B27<=ListeCours[HEURE DE FIN]),ListeCours[UNIQUE]),ListeCours[UNIQUE],0),2),0)","v":0},{"$f":"IFERROR(INDEX(ListeCours[],MATCH(SUMPRODUCT((ListeCours[AGENDA]=EmploiDuTemps[[#Headers],[SAMEDI]])*(ROUNDDOWN($B27,10)>=ROUNDDOWN(ListeCours[HEURE DE DÉBUT],10))*($B27<=ListeCours[HEURE DE FIN]),ListeCours[UNIQUE]),ListeCours[UNIQUE],0),2),0)","v":0}]
[null,"14:00:00",{"$f":"IFERROR(INDEX(ListeCours[],MATCH(SUMPRODUCT((ListeCours[AGENDA]=EmploiDuTemps[[#Headers],[DIMANCHE]])*(ROUNDDOWN($B28,10)>=ROUNDDOWN(ListeCours[HEURE DE DÉBUT],10))*($B28<=ListeCours[HEURE DE FIN]),ListeCours[UNIQUE]),ListeCours[UNIQUE],0),2),0)","v":0},{"$f":"IFERROR(INDEX(ListeCours[],MATCH(SUMPRODUCT((ListeCours[AGENDA]=EmploiDuTemps[[#Headers],[LUNDI]])*(ROUNDDOWN($B28,10)>=ROUNDDOWN(ListeCours[HEURE DE DÉBUT],10))*($B28<=ListeCours[HEURE DE FIN]),ListeCours[UNIQUE]),ListeCours[UNIQUE],0),2),0)","v":"WR-121"},{"$f":"IFERROR(INDEX(ListeCours[],MATCH(SUMPRODUCT((ListeCours[AGENDA]=EmploiDuTemps[[#Headers],[MARDI]])*(ROUNDDOWN($B28,10)>=ROUNDDOWN(ListeCours[HEURE DE DÉBUT],10))*($B28<=ListeCours[HEURE DE FIN]),ListeCours[UNIQUE]),ListeCours[UNIQUE],0),2),0)","v":0},{"$f":"IFERROR(INDEX(ListeCours[],MATCH(SUMPRODUCT((ListeCours[AGENDA]=EmploiDuTemps[[#Headers],[MERCREDI]])*(ROUNDDOWN($B28,10)>=ROUNDDOWN(ListeCours[HEURE DE DÉBUT],10))*($B28<=ListeCours[HEURE DE FIN]),ListeCours[UNIQUE]),ListeCours[UNIQUE],0),2),0)","v":"WR-121"},{"$f":"IFERROR(INDEX(ListeCours[],MATCH(SUMPRODUCT((ListeCours[AGENDA]=EmploiDuTemps[[#Headers],[JEUDI]])*(ROUNDDOWN($B28,10)>=ROUNDDOWN(ListeCours[HEURE DE DÉBUT],10))*($B28<=ListeCours[HEURE DE FIN]),ListeCours[UNIQUE]),ListeCours[UNIQUE],0),2),0)","v":0},{"$f":"IFERROR(INDEX(ListeCours[],MATCH(SUMPRODUCT((ListeCours[AGENDA]=EmploiDuTemps[[#Headers],[VENDREDI]])*(ROUNDDOWN($B28,10)>=ROUNDDOWN(ListeCours[HEURE DE DÉBUT],10))*($B28<=ListeCours[HEURE DE FIN]),ListeCours[UNIQUE]),ListeCours[UNIQUE],0),2),0)","v":0},{"$f":"IFERROR(INDEX(ListeCours[],MATCH(SUMPRODUCT((ListeCours[AGENDA]=EmploiDuTemps[[#Headers],[SAMEDI]])*(ROUNDDOWN($B28,10)>=ROUNDDOWN(ListeCours[HEURE DE DÉBUT],10))*($B28<=ListeCours[HEURE DE FIN]),ListeCours[UNIQUE]),ListeCours[UNIQUE],0),2),0)","v":0}]
[null,"14:15:00",{"$f":"IFERROR(INDEX(ListeCours[],MATCH(SUMPRODUCT((ListeCours[AGENDA]=EmploiDuTemps[[#Headers],[DIMANCHE]])*(ROUNDDOWN($B29,10)>=ROUNDDOWN(ListeCours[HEURE DE DÉBUT],10))*($B29<=ListeCours[HEURE DE FIN]),ListeCours[UNIQUE]),ListeCours[UNIQUE],0),2),0)","v":0},{"$f":"IFERROR(INDEX(ListeCours[],MATCH(SUMPRODUCT((ListeCours[AGENDA]=EmploiDuTemps[[#Headers],[LUNDI]])*(ROUNDDOWN($B29,10)>=ROUNDDOWN(ListeCours[HEURE DE DÉBUT],10))*($B29<=ListeCours[HEURE DE FIN]),ListeCours[UNIQUE]),ListeCours[UNIQUE],0),2),0)","v":0},{"$f":"IFERROR(INDEX(ListeCours[],MATCH(SUMPRODUCT((ListeCours[AGENDA]=EmploiDuTemps[[#Headers],[MARDI]])*(ROUNDDOWN($B29,10)>=ROUNDDOWN(ListeCours[HEURE DE DÉBUT],10))*($B29<=ListeCours[HEURE DE FIN]),ListeCours[UNIQUE]),ListeCours[UNIQUE],0),2),0)","v":0},{"$f":"IFERROR(INDEX(ListeCours[],MATCH(SUMPRODUCT((ListeCours[AGENDA]=EmploiDuTemps[[#Headers],[MERCREDI]])*(ROUNDDOWN($B29,10)>=ROUNDDOWN(ListeCours[HEURE DE DÉBUT],10))*($B29<=ListeCours[HEURE DE FIN]),ListeCours[UNIQUE]),ListeCours[UNIQUE],0),2),0)","v":0},{"$f":"IFERROR(INDEX(ListeCours[],MATCH(SUMPRODUCT((ListeCours[AGENDA]=EmploiDuTemps[[#Headers],[JEUDI]])*(ROUNDDOWN($B29,10)>=ROUNDDOWN(ListeCours[HEURE DE DÉBUT],10))*($B29<=ListeCours[HEURE DE FIN]),ListeCours[UNIQUE]),ListeCours[UNIQUE],0),2),0)","v":0},{"$f":"IFERROR(INDEX(ListeCours[],MATCH(SUMPRODUCT((ListeCours[AGENDA]=EmploiDuTemps[[#Headers],[VENDREDI]])*(ROUNDDOWN($B29,10)>=ROUNDDOWN(ListeCours[HEURE DE DÉBUT],10))*($B29<=ListeCours[HEURE DE FIN]),ListeCours[UNIQUE]),ListeCours[UNIQUE],0),2),0)","v":0},{"$f":"IFERROR(INDEX(ListeCours[],MATCH(SUMPRODUCT((ListeCours[AGENDA]=EmploiDuTemps[[#Headers],[SAMEDI]])*(ROUNDDOWN($B29,10)>=ROUNDDOWN(ListeCours[HEURE DE DÉBUT],10))*($B29<=ListeCours[HEURE DE FIN]),ListeCours[UNIQUE]),ListeCours[UNIQUE],0),2),0)","v":0}]
[null,"14:30:00",{"$f":"IFERROR(INDEX(ListeCours[],MATCH(SUMPRODUCT((ListeCours[AGENDA]=EmploiDuTemps[[#Headers],[DIMANCHE]])*(ROUNDDOWN($B30,10)>=ROUNDDOWN(ListeCours[HEURE DE DÉBUT],10))*($B30<=ListeCours[HEURE DE FIN]),ListeCours[UNIQUE]),ListeCours[UNIQUE],0),2),0)","v":0},{"$f":"IFERROR(INDEX(ListeCours[],MATCH(SUMPRODUCT((ListeCours[AGENDA]=EmploiDuTemps[[#Headers],[LUNDI]])*(ROUNDDOWN($B30,10)>=ROUNDDOWN(ListeCours[HEURE DE DÉBUT],10))*($B30<=ListeCours[HEURE DE FIN]),ListeCours[UNIQUE]),ListeCours[UNIQUE],0),2),0)","v":0},{"$f":"IFERROR(INDEX(ListeCours[],MATCH(SUMPRODUCT((ListeCours[AGENDA]=EmploiDuTemps[[#Headers],[MARDI]])*(ROUNDDOWN($B30,10)>=ROUNDDOWN(ListeCours[HEURE DE DÉBUT],10))*($B30<=ListeCours[HEURE DE FIN]),ListeCours[UNIQUE]),ListeCours[UNIQUE],0),2),0)","v":0},{"$f":"IFERROR(INDEX(ListeCours[],MATCH(SUMPRODUCT((ListeCours[AGENDA]=EmploiDuTemps[[#Headers],[MERCREDI]])*(ROUNDDOWN($B30,10)>=ROUNDDOWN(ListeCours[HEURE DE DÉBUT],10))*($B30<=ListeCours[HEURE DE FIN]),ListeCours[UNIQUE]),ListeCours[UNIQUE],0),2),0)","v":0},{"$f":"IFERROR(INDEX(ListeCours[],MATCH(SUMPRODUCT((ListeCours[AGENDA]=EmploiDuTemps[[#Headers],[JEUDI]])*(ROUNDDOWN($B30,10)>=ROUNDDOWN(ListeCours[HEURE DE DÉBUT],10))*($B30<=ListeCours[HEURE DE FIN]),ListeCours[UNIQUE]),ListeCours[UNIQUE],0),2),0)","v":0},{"$f":"IFERROR(INDEX(ListeCours[],MATCH(SUMPRODUCT((ListeCours[AGENDA]=EmploiDuTemps[[#Headers],[VENDREDI]])*(ROUNDDOWN($B30,10)>=ROUNDDOWN(ListeCours[HEURE DE DÉBUT],10))*($B30<=ListeCours[HEURE DE FIN]),ListeCours[UNIQUE]),ListeCours[UNIQUE],0),2),0)","v":0},{"$f":"IFERROR(INDEX(ListeCours[],MATCH(SUMPRODUCT((ListeCours[AGENDA]=EmploiDuTemps[[#Headers],[SAMEDI]])*(ROUNDDOWN($B30,10)>=ROUNDDOWN(ListeCours[HEURE DE DÉBUT],10))*($B30<=ListeCours[HEURE DE FIN]),ListeCours[UNIQUE]),ListeCours[UNIQUE],0),2),0)","v":0}]
[null,"14:45:00",{"$f":"IFERROR(INDEX(ListeCours[],MATCH(SUMPRODUCT((ListeCours[AGENDA]=EmploiDuTemps[[#Headers],[DIMANCHE]])*(ROUNDDOWN($B31,10)>=ROUNDDOWN(ListeCours[HEURE DE DÉBUT],10))*($B31<=ListeCours[HEURE DE FIN]),ListeCours[UNIQUE]),ListeCours[UNIQUE],0),2),0)","v":0},{"$f":"IFERROR(INDEX(ListeCours[],MATCH(SUMPRODUCT((ListeCours[AGENDA]=EmploiDuTemps[[#Headers],[LUNDI]])*(ROUNDDOWN($B31,10)>=ROUNDDOWN(ListeCours[HEURE DE DÉBUT],10))*($B31<=ListeCours[HEURE DE FIN]),ListeCours[UNIQUE]),ListeCours[UNIQUE],0),2),0)","v":0},{"$f":"IFERROR(INDEX(ListeCours[],MATCH(SUMPRODUCT((ListeCours[AGENDA]=EmploiDuTemps[[#Headers],[MARDI]])*(ROUNDDOWN($B31,10)>=ROUNDDOWN(ListeCours[HEURE DE DÉBUT],10))*($B31<=ListeCours[HEURE DE FIN]),ListeCours[UNIQUE]),ListeCours[UNIQUE],0),2),0)","v":0},{"$f":"IFERROR(INDEX(ListeCours[],MATCH(SUMPRODUCT((ListeCours[AGENDA]=EmploiDuTemps[[#Headers],[MERCREDI]])*(ROUNDDOWN($B31,10)>=ROUNDDOWN(ListeCours[HEURE DE DÉBUT],10))*($B31<=ListeCours[HEURE DE FIN]),ListeCours[UNIQUE]),ListeCours[UNIQUE],0),2),0)","v":0},{"$f":"IFERROR(INDEX(ListeCours[],MATCH(SUMPRODUCT((ListeCours[AGENDA]=EmploiDuTemps[[#Headers],[JEUDI]])*(ROUNDDOWN($B31,10)>=ROUNDDOWN(ListeCours[HEURE DE DÉBUT],10))*($B31<=ListeCours[HEURE DE FIN]),ListeCours[UNIQUE]),ListeCours[UNIQUE],0),2),0)","v":0},{"$f":"IFERROR(INDEX(ListeCours[],MATCH(SUMPRODUCT((ListeCours[AGENDA]=EmploiDuTemps[[#Headers],[VENDREDI]])*(ROUNDDOWN($B31,10)>=ROUNDDOWN(ListeCours[HEURE DE DÉBUT],10))*($B31<=ListeCours[HEURE DE FIN]),ListeCours[UNIQUE]),ListeCours[UNIQUE],0),2),0)","v":0},{"$f":"IFERROR(INDEX(ListeCours[],MATCH(SUMPRODUCT((ListeCours[AGENDA]=EmploiDuTemps[[#Headers],[SAMEDI]])*(ROUNDDOWN($B31,10)>=ROUNDDOWN(ListeCours[HEURE DE DÉBUT],10))*($B31<=ListeCours[HEURE DE FIN]),ListeCours[UNIQUE]),ListeCours[UNIQUE],0),2),0)","v":0}]
[null,"15:00:00",{"$f":"IFERROR(INDEX(ListeCours[],MATCH(SUMPRODUCT((ListeCours[AGENDA]=EmploiDuTemps[[#Headers],[DIMANCHE]])*(ROUNDDOWN($B32,10)>=ROUNDDOWN(ListeCours[HEURE DE DÉBUT],10))*($B32<=ListeCours[HEURE DE FIN]),ListeCours[UNIQUE]),ListeCours[UNIQUE],0),2),0)","v":0},{"$f":"IFERROR(INDEX(ListeCours[],MATCH(SUMPRODUCT((ListeCours[AGENDA]=EmploiDuTemps[[#Headers],[LUNDI]])*(ROUNDDOWN($B32,10)>=ROUNDDOWN(ListeCours[HEURE DE DÉBUT],10))*($B32<=ListeCours[HEURE DE FIN]),ListeCours[UNIQUE]),ListeCours[UNIQUE],0),2),0)","v":0},{"$f":"IFERROR(INDEX(ListeCours[],MATCH(SUMPRODUCT((ListeCours[AGENDA]=EmploiDuTemps[[#Headers],[MARDI]])*(ROUNDDOWN($B32,10)>=ROUNDDOWN(ListeCours[HEURE DE DÉBUT],10))*($B32<=ListeCours[HEURE DE FIN]),ListeCours[UNIQUE]),ListeCours[UNIQUE],0),2),0)","v":0},{"$f":"IFERROR(INDEX(ListeCours[],MATCH(SUMPRODUCT((ListeCours[AGENDA]=EmploiDuTemps[[#Headers],[MERCREDI]])*(ROUNDDOWN($B32,10)>=ROUNDDOWN(ListeCours[HEURE DE DÉBUT],10))*($B32<=ListeCours[HEURE DE FIN]),ListeCours[UNIQUE]),ListeCours[UNIQUE],0),2),0)","v":0},{"$f":"IFERROR(INDEX(ListeCours[],MATCH(SUMPRODUCT((ListeCours[AGENDA]=EmploiDuTemps[[#Headers],[JEUDI]])*(ROUNDDOWN($B32,10)>=ROUNDDOWN(ListeCours[HEURE DE DÉBUT],10))*($B32<=ListeCours[HEURE DE FIN]),ListeCours[UNIQUE]),ListeCours[UNIQUE],0),2),0)","v":0},{"$f":"IFERROR(INDEX(ListeCours[],MATCH(SUMPRODUCT((ListeCours[AGENDA]=EmploiDuTemps[[#Headers],[VENDREDI]])*(ROUNDDOWN($B32,10)>=ROUNDDOWN(ListeCours[HEURE DE DÉBUT],10))*($B32<=ListeCours[HEURE DE FIN]),ListeCours[UNIQUE]),ListeCours[UNIQUE],0),2),0)","v":0},{"$f":"IFERROR(INDEX(ListeCours[],MATCH(SUMPRODUCT((ListeCours[AGENDA]=EmploiDuTemps[[#Headers],[SAMEDI]])*(ROUNDDOWN($B32,10)>=ROUNDDOWN(ListeCours[HEURE DE DÉBUT],10))*($B32<=ListeCours[HEURE DE FIN]),ListeCours[UNIQUE]),ListeCours[UNIQUE],0),2),0)","v":0}]
[null,"15:15:00",{"$f":"IFERROR(INDEX(ListeCours[],MATCH(SUMPRODUCT((ListeCours[AGENDA]=EmploiDuTemps[[#Headers],[DIMANCHE]])*(ROUNDDOWN($B33,10)>=ROUNDDOWN(ListeCours[HEURE DE DÉBUT],10))*($B33<=ListeCours[HEURE DE FIN]),ListeCours[UNIQUE]),ListeCours[UNIQUE],0),2),0)","v":0},{"$f":"IFERROR(INDEX(ListeCours[],MATCH(SUMPRODUCT((ListeCours[AGENDA]=EmploiDuTemps[[#Headers],[LUNDI]])*(ROUNDDOWN($B33,10)>=ROUNDDOWN(ListeCours[HEURE DE DÉBUT],10))*($B33<=ListeCours[HEURE DE FIN]),ListeCours[UNIQUE]),ListeCours[UNIQUE],0),2),0)","v":0},{"$f":"IFERROR(INDEX(ListeCours[],MATCH(SUMPRODUCT((ListeCours[AGENDA]=EmploiDuTemps[[#Headers],[MARDI]])*(ROUNDDOWN($B33,10)>=ROUNDDOWN(ListeCours[HEURE DE DÉBUT],10))*($B33<=ListeCours[HEURE DE FIN]),ListeCours[UNIQUE]),ListeCours[UNIQUE],0),2),0)","v":0},{"$f":"IFERROR(INDEX(ListeCours[],MATCH(SUMPRODUCT((ListeCours[AGENDA]=EmploiDuTemps[[#Headers],[MERCREDI]])*(ROUNDDOWN($B33,10)>=ROUNDDOWN(ListeCours[HEURE DE DÉBUT],10))*($B33<=ListeCours[HEURE DE FIN]),ListeCours[UNIQUE]),ListeCours[UNIQUE],0),2),0)","v":0},{"$f":"IFERROR(INDEX(ListeCours[],MATCH(SUMPRODUCT((ListeCours[AGENDA]=EmploiDuTemps[[#Headers],[JEUDI]])*(ROUNDDOWN($B33,10)>=ROUNDDOWN(ListeCours[HEURE DE DÉBUT],10))*($B33<=ListeCours[HEURE DE FIN]),ListeCours[UNIQUE]),ListeCours[UNIQUE],0),2),0)","v":0},{"$f":"IFERROR(INDEX(ListeCours[],MATCH(SUMPRODUCT((ListeCours[AGENDA]=EmploiDuTemps[[#Headers],[VENDREDI]])*(ROUNDDOWN($B33,10)>=ROUNDDOWN(ListeCours[HEURE DE DÉBUT],10))*($B33<=ListeCours[HEURE DE FIN]),ListeCours[UNIQUE]),ListeCours[UNIQUE],0),2),0)","v":0},{"$f":"IFERROR(INDEX(ListeCours[],MATCH(SUMPRODUCT((ListeCours[AGENDA]=EmploiDuTemps[[#Headers],[SAMEDI]])*(ROUNDDOWN($B33,10)>=ROUNDDOWN(ListeCours[HEURE DE DÉBUT],10))*($B33<=ListeCours[HEURE DE FIN]),ListeCours[UNIQUE]),ListeCours[UNIQUE],0),2),0)","v":0}]
[null,"15:30:00",{"$f":"IFERROR(INDEX(ListeCours[],MATCH(SUMPRODUCT((ListeCours[AGENDA]=EmploiDuTemps[[#Headers],[DIMANCHE]])*(ROUNDDOWN($B34,10)>=ROUNDDOWN(ListeCours[HEURE DE DÉBUT],10))*($B34<=ListeCours[HEURE DE FIN]),ListeCours[UNIQUE]),ListeCours[UNIQUE],0),2),0)","v":0},{"$f":"IFERROR(INDEX(ListeCours[],MATCH(SUMPRODUCT((ListeCours[AGENDA]=EmploiDuTemps[[#Headers],[LUNDI]])*(ROUNDDOWN($B34,10)>=ROUNDDOWN(ListeCours[HEURE DE DÉBUT],10))*($B34<=ListeCours[HEURE DE FIN]),ListeCours[UNIQUE]),ListeCours[UNIQUE],0),2),0)","v":0},{"$f":"IFERROR(INDEX(ListeCours[],MATCH(SUMPRODUCT((ListeCours[AGENDA]=EmploiDuTemps[[#Headers],[MARDI]])*(ROUNDDOWN($B34,10)>=ROUNDDOWN(ListeCours[HEURE DE DÉBUT],10))*($B34<=ListeCours[HEURE DE FIN]),ListeCours[UNIQUE]),ListeCours[UNIQUE],0),2),0)","v":0},{"$f":"IFERROR(INDEX(ListeCours[],MATCH(SUMPRODUCT((ListeCours[AGENDA]=EmploiDuTemps[[#Headers],[MERCREDI]])*(ROUNDDOWN($B34,10)>=ROUNDDOWN(ListeCours[HEURE DE DÉBUT],10))*($B34<=ListeCours[HEURE DE FIN]),ListeCours[UNIQUE]),ListeCours[UNIQUE],0),2),0)","v":0},{"$f":"IFERROR(INDEX(ListeCours[],MATCH(SUMPRODUCT((ListeCours[AGENDA]=EmploiDuTemps[[#Headers],[JEUDI]])*(ROUNDDOWN($B34,10)>=ROUNDDOWN(ListeCours[HEURE DE DÉBUT],10))*($B34<=ListeCours[HEURE DE FIN]),ListeCours[UNIQUE]),ListeCours[UNIQUE],0),2),0)","v":0},{"$f":"IFERROR(INDEX(ListeCours[],MATCH(SUMPRODUCT((ListeCours[AGENDA]=EmploiDuTemps[[#Headers],[VENDREDI]])*(ROUNDDOWN($B34,10)>=ROUNDDOWN(ListeCours[HEURE DE DÉBUT],10))*($B34<=ListeCours[HEURE DE FIN]),ListeCours[UNIQUE]),ListeCours[UNIQUE],0),2),0)","v":0},{"$f":"IFERROR(INDEX(ListeCours[],MATCH(SUMPRODUCT((ListeCours[AGENDA]=EmploiDuTemps[[#Headers],[SAMEDI]])*(ROUNDDOWN($B34,10)>=ROUNDDOWN(ListeCours[HEURE DE DÉBUT],10))*($B34<=ListeCours[HEURE DE FIN]),ListeCours[UNIQUE]),ListeCours[UNIQUE],0),2),0)","v":0}]
[null,"15:45:00",{"$f":"IFERROR(INDEX(ListeCours[],MATCH(SUMPRODUCT((ListeCours[AGENDA]=EmploiDuTemps[[#Headers],[DIMANCHE]])*(ROUNDDOWN($B35,10)>=ROUNDDOWN(ListeCours[HEURE DE DÉBUT],10))*($B35<=ListeCours[HEURE DE FIN]),ListeCours[UNIQUE]),ListeCours[UNIQUE],0),2),0)","v":0},{"$f":"IFERROR(INDEX(ListeCours[],MATCH(SUMPRODUCT((ListeCours[AGENDA]=EmploiDuTemps[[#Headers],[LUNDI]])*(ROUNDDOWN($B35,10)>=ROUNDDOWN(ListeCours[HEURE DE DÉBUT],10))*($B35<=ListeCours[HEURE DE FIN]),ListeCours[UNIQUE]),ListeCours[UNIQUE],0),2),0)","v":0},{"$f":"IFERROR(INDEX(ListeCours[],MATCH(SUMPRODUCT((ListeCours[AGENDA]=EmploiDuTemps[[#Headers],[MARDI]])*(ROUNDDOWN($B35,10)>=ROUNDDOWN(ListeCours[HEURE DE DÉBUT],10))*($B35<=ListeCours[HEURE DE FIN]),ListeCours[UNIQUE]),ListeCours[UNIQUE],0),2),0)","v":0},{"$f":"IFERROR(INDEX(ListeCours[],MATCH(SUMPRODUCT((ListeCours[AGENDA]=EmploiDuTemps[[#Headers],[MERCREDI]])*(ROUNDDOWN($B35,10)>=ROUNDDOWN(ListeCours[HEURE DE DÉBUT],10))*($B35<=ListeCours[HEURE DE FIN]),ListeCours[UNIQUE]),ListeCours[UNIQUE],0),2),0)","v":0},{"$f":"IFERROR(INDEX(ListeCours[],MATCH(SUMPRODUCT((ListeCours[AGENDA]=EmploiDuTemps[[#Headers],[JEUDI]])*(ROUNDDOWN($B35,10)>=ROUNDDOWN(ListeCours[HEURE DE DÉBUT],10))*($B35<=ListeCours[HEURE DE FIN]),ListeCours[UNIQUE]),ListeCours[UNIQUE],0),2),0)","v":0},{"$f":"IFERROR(INDEX(ListeCours[],MATCH(SUMPRODUCT((ListeCours[AGENDA]=EmploiDuTemps[[#Headers],[VENDREDI]])*(ROUNDDOWN($B35,10)>=ROUNDDOWN(ListeCours[HEURE DE DÉBUT],10))*($B35<=ListeCours[HEURE DE FIN]),ListeCours[UNIQUE]),ListeCours[UNIQUE],0),2),0)","v":0},{"$f":"IFERROR(INDEX(ListeCours[],MATCH(SUMPRODUCT((ListeCours[AGENDA]=EmploiDuTemps[[#Headers],[SAMEDI]])*(ROUNDDOWN($B35,10)>=ROUNDDOWN(ListeCours[HEURE DE DÉBUT],10))*($B35<=ListeCours[HEURE DE FIN]),ListeCours[UNIQUE]),ListeCours[UNIQUE],0),2),0)","v":0}]
[null,"16:00:00",{"$f":"IFERROR(INDEX(ListeCours[],MATCH(SUMPRODUCT((ListeCours[AGENDA]=EmploiDuTemps[[#Headers],[DIMANCHE]])*(ROUNDDOWN($B36,10)>=ROUNDDOWN(ListeCours[HEURE DE DÉBUT],10))*($B36<=ListeCours[HEURE DE FIN]),ListeCours[UNIQUE]),ListeCours[UNIQUE],0),2),0)","v":0},{"$f":"IFERROR(INDEX(ListeCours[],MATCH(SUMPRODUCT((ListeCours[AGENDA]=EmploiDuTemps[[#Headers],[LUNDI]])*(ROUNDDOWN($B36,10)>=ROUNDDOWN(ListeCours[HEURE DE DÉBUT],10))*($B36<=ListeCours[HEURE DE FIN]),ListeCours[UNIQUE]),ListeCours[UNIQUE],0),2),0)","v":"SP-111"},{"$f":"IFERROR(INDEX(ListeCours[],MATCH(SUMPRODUCT((ListeCours[AGENDA]=EmploiDuTemps[[#Headers],[MARDI]])*(ROUNDDOWN($B36,10)>=ROUNDDOWN(ListeCours[HEURE DE DÉBUT],10))*($B36<=ListeCours[HEURE DE FIN]),ListeCours[UNIQUE]),ListeCours[UNIQUE],0),2),0)","v":0},{"$f":"IFERROR(INDEX(ListeCours[],MATCH(SUMPRODUCT((ListeCours[AGENDA]=EmploiDuTemps[[#Headers],[MERCREDI]])*(ROUNDDOWN($B36,10)>=ROUNDDOWN(ListeCours[HEURE DE DÉBUT],10))*($B36<=ListeCours[HEURE DE FIN]),ListeCours[UNIQUE]),ListeCours[UNIQUE],0),2),0)","v":0},{"$f":"IFERROR(INDEX(ListeCours[],MATCH(SUMPRODUCT((ListeCours[AGENDA]=EmploiDuTemps[[#Headers],[JEUDI]])*(ROUNDDOWN($B36,10)>=ROUNDDOWN(ListeCours[HEURE DE DÉBUT],10))*($B36<=ListeCours[HEURE DE FIN]),ListeCours[UNIQUE]),ListeCours[UNIQUE],0),2),0)","v":0},{"$f":"IFERROR(INDEX(ListeCours[],MATCH(SUMPRODUCT((ListeCours[AGENDA]=EmploiDuTemps[[#Headers],[VENDREDI]])*(ROUNDDOWN($B36,10)>=ROUNDDOWN(ListeCours[HEURE DE DÉBUT],10))*($B36<=ListeCours[HEURE DE FIN]),ListeCours[UNIQUE]),ListeCours[UNIQUE],0),2),0)","v":0},{"$f":"IFERROR(INDEX(ListeCours[],MATCH(SUMPRODUCT((ListeCours[AGENDA]=EmploiDuTemps[[#Headers],[SAMEDI]])*(ROUNDDOWN($B36,10)>=ROUNDDOWN(ListeCours[HEURE DE DÉBUT],10))*($B36<=ListeCours[HEURE DE FIN]),ListeCours[UNIQUE]),ListeCours[UNIQUE],0),2),0)","v":0}]
[null,{"$f":"B36+Incrément","v":"16:15:00"},{"$f":"IFERROR(INDEX(ListeCours[],MATCH(SUMPRODUCT((ListeCours[AGENDA]=EmploiDuTemps[[#Headers],[DIMANCHE]])*(ROUNDDOWN($B37,10)>=ROUNDDOWN(ListeCours[HEURE DE DÉBUT],10))*($B37<=ListeCours[HEURE DE FIN]),ListeCours[UNIQUE]),ListeCours[UNIQUE],0),2),0)","v":0},{"$f":"IFERROR(INDEX(ListeCours[],MATCH(SUMPRODUCT((ListeCours[AGENDA]=EmploiDuTemps[[#Headers],[LUNDI]])*(ROUNDDOWN($B37,10)>=ROUNDDOWN(ListeCours[HEURE DE DÉBUT],10))*($B37<=ListeCours[HEURE DE FIN]),ListeCours[UNIQUE]),ListeCours[UNIQUE],0),2),0)","v":"SP-111"},{"$f":"IFERROR(INDEX(ListeCours[],MATCH(SUMPRODUCT((ListeCours[AGENDA]=EmploiDuTemps[[#Headers],[MARDI]])*(ROUNDDOWN($B37,10)>=ROUNDDOWN(ListeCours[HEURE DE DÉBUT],10))*($B37<=ListeCours[HEURE DE FIN]),ListeCours[UNIQUE]),ListeCours[UNIQUE],0),2),0)","v":0},{"$f":"IFERROR(INDEX(ListeCours[],MATCH(SUMPRODUCT((ListeCours[AGENDA]=EmploiDuTemps[[#Headers],[MERCREDI]])*(ROUNDDOWN($B37,10)>=ROUNDDOWN(ListeCours[HEURE DE DÉBUT],10))*($B37<=ListeCours[HEURE DE FIN]),ListeCours[UNIQUE]),ListeCours[UNIQUE],0),2),0)","v":0},{"$f":"IFERROR(INDEX(ListeCours[],MATCH(SUMPRODUCT((ListeCours[AGENDA]=EmploiDuTemps[[#Headers],[JEUDI]])*(ROUNDDOWN($B37,10)>=ROUNDDOWN(ListeCours[HEURE DE DÉBUT],10))*($B37<=ListeCours[HEURE DE FIN]),ListeCours[UNIQUE]),ListeCours[UNIQUE],0),2),0)","v":0},{"$f":"IFERROR(INDEX(ListeCours[],MATCH(SUMPRODUCT((ListeCours[AGENDA]=EmploiDuTemps[[#Headers],[VENDREDI]])*(ROUNDDOWN($B37,10)>=ROUNDDOWN(ListeCours[HEURE DE DÉBUT],10))*($B37<=ListeCours[HEURE DE FIN]),ListeCours[UNIQUE]),ListeCours[UNIQUE],0),2),0)","v":0},{"$f":"IFERROR(INDEX(ListeCours[],MATCH(SUMPRODUCT((ListeCours[AGENDA]=EmploiDuTemps[[#Headers],[SAMEDI]])*(ROUNDDOWN($B37,10)>=ROUNDDOWN(ListeCours[HEURE DE DÉBUT],10))*($B37<=ListeCours[HEURE DE FIN]),ListeCours[UNIQUE]),ListeCours[UNIQUE],0),2),0)","v":0}]
[null,"16:30:00",{"$f":"IFERROR(INDEX(ListeCours[],MATCH(SUMPRODUCT((ListeCours[AGENDA]=EmploiDuTemps[[#Headers],[DIMANCHE]])*(ROUNDDOWN($B38,10)>=ROUNDDOWN(ListeCours[HEURE DE DÉBUT],10))*($B38<=ListeCours[HEURE DE FIN]),ListeCours[UNIQUE]),ListeCours[UNIQUE],0),2),0)","v":0},{"$f":"IFERROR(INDEX(ListeCours[],MATCH(SUMPRODUCT((ListeCours[AGENDA]=EmploiDuTemps[[#Headers],[LUNDI]])*(ROUNDDOWN($B38,10)>=ROUNDDOWN(ListeCours[HEURE DE DÉBUT],10))*($B38<=ListeCours[HEURE DE FIN]),ListeCours[UNIQUE]),ListeCours[UNIQUE],0),2),0)","v":"SP-111"},{"$f":"IFERROR(INDEX(ListeCours[],MATCH(SUMPRODUCT((ListeCours[AGENDA]=EmploiDuTemps[[#Headers],[MARDI]])*(ROUNDDOWN($B38,10)>=ROUNDDOWN(ListeCours[HEURE DE DÉBUT],10))*($B38<=ListeCours[HEURE DE FIN]),ListeCours[UNIQUE]),ListeCours[UNIQUE],0),2),0)","v":0},{"$f":"IFERROR(INDEX(ListeCours[],MATCH(SUMPRODUCT((ListeCours[AGENDA]=EmploiDuTemps[[#Headers],[MERCREDI]])*(ROUNDDOWN($B38,10)>=ROUNDDOWN(ListeCours[HEURE DE DÉBUT],10))*($B38<=ListeCours[HEURE DE FIN]),ListeCours[UNIQUE]),ListeCours[UNIQUE],0),2),0)","v":0},{"$f":"IFERROR(INDEX(ListeCours[],MATCH(SUMPRODUCT((ListeCours[AGENDA]=EmploiDuTemps[[#Headers],[JEUDI]])*(ROUNDDOWN($B38,10)>=ROUNDDOWN(ListeCours[HEURE DE DÉBUT],10))*($B38<=ListeCours[HEURE DE FIN]),ListeCours[UNIQUE]),ListeCours[UNIQUE],0),2),0)","v":0},{"$f":"IFERROR(INDEX(ListeCours[],MATCH(SUMPRODUCT((ListeCours[AGENDA]=EmploiDuTemps[[#Headers],[VENDREDI]])*(ROUNDDOWN($B38,10)>=ROUNDDOWN(ListeCours[HEURE DE DÉBUT],10))*($B38<=ListeCours[HEURE DE FIN]),ListeCours[UNIQUE]),ListeCours[UNIQUE],0),2),0)","v":0},{"$f":"IFERROR(INDEX(ListeCours[],MATCH(SUMPRODUCT((ListeCours[AGENDA]=EmploiDuTemps[[#Headers],[SAMEDI]])*(ROUNDDOWN($B38,10)>=ROUNDDOWN(ListeCours[HEURE DE DÉBUT],10))*($B38<=ListeCours[HEURE DE FIN]),ListeCours[UNIQUE]),ListeCours[UNIQUE],0),2),0)","v":0}]
[null,"16:45:00",{"$f":"IFERROR(INDEX(ListeCours[],MATCH(SUMPRODUCT((ListeCours[AGENDA]=EmploiDuTemps[[#Headers],[DIMANCHE]])*(ROUNDDOWN($B39,10)>=ROUNDDOWN(ListeCours[HEURE DE DÉBUT],10))*($B39<=ListeCours[HEURE DE FIN]),ListeCours[UNIQUE]),ListeCours[UNIQUE],0),2),0)","v":0},{"$f":"IFERROR(INDEX(ListeCours[],MATCH(SUMPRODUCT((ListeCours[AGENDA]=EmploiDuTemps[[#Headers],[LUNDI]])*(ROUNDDOWN($B39,10)>=ROUNDDOWN(ListeCours[HEURE DE DÉBUT],10))*($B39<=ListeCours[HEURE DE FIN]),ListeCours[UNIQUE]),ListeCours[UNIQUE],0),2),0)","v":"SP-111"},{"$f":"IFERROR(INDEX(ListeCours[],MATCH(SUMPRODUCT((ListeCours[AGENDA]=EmploiDuTemps[[#Headers],[MARDI]])*(ROUNDDOWN($B39,10)>=ROUNDDOWN(ListeCours[HEURE DE DÉBUT],10))*($B39<=ListeCours[HEURE DE FIN]),ListeCours[UNIQUE]),ListeCours[UNIQUE],0),2),0)","v":0},{"$f":"IFERROR(INDEX(ListeCours[],MATCH(SUMPRODUCT((ListeCours[AGENDA]=EmploiDuTemps[[#Headers],[MERCREDI]])*(ROUNDDOWN($B39,10)>=ROUNDDOWN(ListeCours[HEURE DE DÉBUT],10))*($B39<=ListeCours[HEURE DE FIN]),ListeCours[UNIQUE]),ListeCours[UNIQUE],0),2),0)","v":0},{"$f":"IFERROR(INDEX(ListeCours[],MATCH(SUMPRODUCT((ListeCours[AGENDA]=EmploiDuTemps[[#Headers],[JEUDI]])*(ROUNDDOWN($B39,10)>=ROUNDDOWN(ListeCours[HEURE DE DÉBUT],10))*($B39<=ListeCours[HEURE DE FIN]),ListeCours[UNIQUE]),ListeCours[UNIQUE],0),2),0)","v":0},{"$f":"IFERROR(INDEX(ListeCours[],MATCH(SUMPRODUCT((ListeCours[AGENDA]=EmploiDuTemps[[#Headers],[VENDREDI]])*(ROUNDDOWN($B39,10)>=ROUNDDOWN(ListeCours[HEURE DE DÉBUT],10))*($B39<=ListeCours[HEURE DE FIN]),ListeCours[UNIQUE]),ListeCours[UNIQUE],0),2),0)","v":0},{"$f":"IFERROR(INDEX(ListeCours[],MATCH(SUMPRODUCT((ListeCours[AGENDA]=EmploiDuTemps[[#Headers],[SAMEDI]])*(ROUNDDOWN($B39,10)>=ROUNDDOWN(ListeCours[HEURE DE DÉBUT],10))*($B39<=ListeCours[HEURE DE FIN]),ListeCours[UNIQUE]),ListeCours[UNIQUE],0),2),0)","v":0}]
[null,"17:00:00",{"$f":"IFERROR(INDEX(ListeCours[],MATCH(SUMPRODUCT((ListeCours[AGENDA]=EmploiDuTemps[[#Headers],[DIMANCHE]])*(ROUNDDOWN($B40,10)>=ROUNDDOWN(ListeCours[HEURE DE DÉBUT],10))*($B40<=ListeCours[HEURE DE FIN]),ListeCours[UNIQUE]),ListeCours[UNIQUE],0),2),0)","v":0},{"$f":"IFERROR(INDEX(ListeCours[],MATCH(SUMPRODUCT((ListeCours[AGENDA]=EmploiDuTemps[[#Headers],[LUNDI]])*(ROUNDDOWN($B40,10)>=ROUNDDOWN(ListeCours[HEURE DE DÉBUT],10))*($B40<=ListeCours[HEURE DE FIN]),ListeCours[UNIQUE]),ListeCours[UNIQUE],0),2),0)","v":"SP-111"},{"$f":"IFERROR(INDEX(ListeCours[],MATCH(SUMPRODUCT((ListeCours[AGENDA]=EmploiDuTemps[[#Headers],[MARDI]])*(ROUNDDOWN($B40,10)>=ROUNDDOWN(ListeCours[HEURE DE DÉBUT],10))*($B40<=ListeCours[HEURE DE FIN]),ListeCours[UNIQUE]),ListeCours[UNIQUE],0),2),0)","v":0},{"$f":"IFERROR(INDEX(ListeCours[],MATCH(SUMPRODUCT((ListeCours[AGENDA]=EmploiDuTemps[[#Headers],[MERCREDI]])*(ROUNDDOWN($B40,10)>=ROUNDDOWN(ListeCours[HEURE DE DÉBUT],10))*($B40<=ListeCours[HEURE DE FIN]),ListeCours[UNIQUE]),ListeCours[UNIQUE],0),2),0)","v":0},{"$f":"IFERROR(INDEX(ListeCours[],MATCH(SUMPRODUCT((ListeCours[AGENDA]=EmploiDuTemps[[#Headers],[JEUDI]])*(ROUNDDOWN($B40,10)>=ROUNDDOWN(ListeCours[HEURE DE DÉBUT],10))*($B40<=ListeCours[HEURE DE FIN]),ListeCours[UNIQUE]),ListeCours[UNIQUE],0),2),0)","v":0},{"$f":"IFERROR(INDEX(ListeCours[],MATCH(SUMPRODUCT((ListeCours[AGENDA]=EmploiDuTemps[[#Headers],[VENDREDI]])*(ROUNDDOWN($B40,10)>=ROUNDDOWN(ListeCours[HEURE DE DÉBUT],10))*($B40<=ListeCours[HEURE DE FIN]),ListeCours[UNIQUE]),ListeCours[UNIQUE],0),2),0)","v":0},{"$f":"IFERROR(INDEX(ListeCours[],MATCH(SUMPRODUCT((ListeCours[AGENDA]=EmploiDuTemps[[#Headers],[SAMEDI]])*(ROUNDDOWN($B40,10)>=ROUNDDOWN(ListeCours[HEURE DE DÉBUT],10))*($B40<=ListeCours[HEURE DE FIN]),ListeCours[UNIQUE]),ListeCours[UNIQUE],0),2),0)","v":0}]
[null,"17:15:00",{"$f":"IFERROR(INDEX(ListeCours[],MATCH(SUMPRODUCT((ListeCours[AGENDA]=EmploiDuTemps[[#Headers],[DIMANCHE]])*(ROUNDDOWN($B41,10)>=ROUNDDOWN(ListeCours[HEURE DE DÉBUT],10))*($B41<=ListeCours[HEURE DE FIN]),ListeCours[UNIQUE]),ListeCours[UNIQUE],0),2),0)","v":0},{"$f":"IFERROR(INDEX(ListeCours[],MATCH(SUMPRODUCT((ListeCours[AGENDA]=EmploiDuTemps[[#Headers],[LUNDI]])*(ROUNDDOWN($B41,10)>=ROUNDDOWN(ListeCours[HEURE DE DÉBUT],10))*($B41<=ListeCours[HEURE DE FIN]),ListeCours[UNIQUE]),ListeCours[UNIQUE],0),2),0)","v":0},{"$f":"IFERROR(INDEX(ListeCours[],MATCH(SUMPRODUCT((ListeCours[AGENDA]=EmploiDuTemps[[#Headers],[MARDI]])*(ROUNDDOWN($B41,10)>=ROUNDDOWN(ListeCours[HEURE DE DÉBUT],10))*($B41<=ListeCours[HEURE DE FIN]),ListeCours[UNIQUE]),ListeCours[UNIQUE],0),2),0)","v":0},{"$f":"IFERROR(INDEX(ListeCours[],MATCH(SUMPRODUCT((ListeCours[AGENDA]=EmploiDuTemps[[#Headers],[MERCREDI]])*(ROUNDDOWN($B41,10)>=ROUNDDOWN(ListeCours[HEURE DE DÉBUT],10))*($B41<=ListeCours[HEURE DE FIN]),ListeCours[UNIQUE]),ListeCours[UNIQUE],0),2),0)","v":0},{"$f":"IFERROR(INDEX(ListeCours[],MATCH(SUMPRODUCT((ListeCours[AGENDA]=EmploiDuTemps[[#Headers],[JEUDI]])*(ROUNDDOWN($B41,10)>=ROUNDDOWN(ListeCours[HEURE DE DÉBUT],10))*($B41<=ListeCours[HEURE DE FIN]),ListeCours[UNIQUE]),ListeCours[UNIQUE],0),2),0)","v":0},{"$f":"IFERROR(INDEX(ListeCours[],MATCH(SUMPRODUCT((ListeCours[AGENDA]=EmploiDuTemps[[#Headers],[VENDREDI]])*(ROUNDDOWN($B41,10)>=ROUNDDOWN(ListeCours[HEURE DE DÉBUT],10))*($B41<=ListeCours[HEURE DE FIN]),ListeCours[UNIQUE]),ListeCours[UNIQUE],0),2),0)","v":0},{"$f":"IFERROR(INDEX(ListeCours[],MATCH(SUMPRODUCT((ListeCours[AGENDA]=EmploiDuTemps[[#Headers],[SAMEDI]])*(ROUNDDOWN($B41,10)>=ROUNDDOWN(ListeCours[HEURE DE DÉBUT],10))*($B41<=ListeCours[HEURE DE FIN]),ListeCours[UNIQUE]),ListeCours[UNIQUE],0),2),0)","v":0}]
[null,"17:30:00",{"$f":"IFERROR(INDEX(ListeCours[],MATCH(SUMPRODUCT((ListeCours[AGENDA]=EmploiDuTemps[[#Headers],[DIMANCHE]])*(ROUNDDOWN($B42,10)>=ROUNDDOWN(ListeCours[HEURE DE DÉBUT],10))*($B42<=ListeCours[HEURE DE FIN]),ListeCours[UNIQUE]),ListeCours[UNIQUE],0),2),0)","v":0},{"$f":"IFERROR(INDEX(ListeCours[],MATCH(SUMPRODUCT((ListeCours[AGENDA]=EmploiDuTemps[[#Headers],[LUNDI]])*(ROUNDDOWN($B42,10)>=ROUNDDOWN(ListeCours[HEURE DE DÉBUT],10))*($B42<=ListeCours[HEURE DE FIN]),ListeCours[UNIQUE]),ListeCours[UNIQUE],0),2),0)","v":0},{"$f":"IFERROR(INDEX(ListeCours[],MATCH(SUMPRODUCT((ListeCours[AGENDA]=EmploiDuTemps[[#Headers],[MARDI]])*(ROUNDDOWN($B42,10)>=ROUNDDOWN(ListeCours[HEURE DE DÉBUT],10))*($B42<=ListeCours[HEURE DE FIN]),ListeCours[UNIQUE]),ListeCours[UNIQUE],0),2),0)","v":0},{"$f":"IFERROR(INDEX(ListeCours[],MATCH(SUMPRODUCT((ListeCours[AGENDA]=EmploiDuTemps[[#Headers],[MERCREDI]])*(ROUNDDOWN($B42,10)>=ROUNDDOWN(ListeCours[HEURE DE DÉBUT],10))*($B42<=ListeCours[HEURE DE FIN]),ListeCours[UNIQUE]),ListeCours[UNIQUE],0),2),0)","v":0},{"$f":"IFERROR(INDEX(ListeCours[],MATCH(SUMPRODUCT((ListeCours[AGENDA]=EmploiDuTemps[[#Headers],[JEUDI]])*(ROUNDDOWN($B42,10)>=ROUNDDOWN(ListeCours[HEURE DE DÉBUT],10))*($B42<=ListeCours[HEURE DE FIN]),ListeCours[UNIQUE]),ListeCours[UNIQUE],0),2),0)","v":0},{"$f":"IFERROR(INDEX(ListeCours[],MATCH(SUMPRODUCT((ListeCours[AGENDA]=EmploiDuTemps[[#Headers],[VENDREDI]])*(ROUNDDOWN($B42,10)>=ROUNDDOWN(ListeCours[HEURE DE DÉBUT],10))*($B42<=ListeCours[HEURE DE FIN]),ListeCours[UNIQUE]),ListeCours[UNIQUE],0),2),0)","v":0},{"$f":"IFERROR(INDEX(ListeCours[],MATCH(SUMPRODUCT((ListeCours[AGENDA]=EmploiDuTemps[[#Headers],[SAMEDI]])*(ROUNDDOWN($B42,10)>=ROUNDDOWN(ListeCours[HEURE DE DÉBUT],10))*($B42<=ListeCours[HEURE DE FIN]),ListeCours[UNIQUE]),ListeCours[UNIQUE],0),2),0)","v":0}]
[null,"17:45:00",{"$f":"IFERROR(INDEX(ListeCours[],MATCH(SUMPRODUCT((ListeCours[AGENDA]=EmploiDuTemps[[#Headers],[DIMANCHE]])*(ROUNDDOWN($B43,10)>=ROUNDDOWN(ListeCours[HEURE DE DÉBUT],10))*($B43<=ListeCours[HEURE DE FIN]),ListeCours[UNIQUE]),ListeCours[UNIQUE],0),2),0)","v":0},{"$f":"IFERROR(INDEX(ListeCours[],MATCH(SUMPRODUCT((ListeCours[AGENDA]=EmploiDuTemps[[#Headers],[LUNDI]])*(ROUNDDOWN($B43,10)>=ROUNDDOWN(ListeCours[HEURE DE DÉBUT],10))*($B43<=ListeCours[HEURE DE FIN]),ListeCours[UNIQUE]),ListeCours[UNIQUE],0),2),0)","v":0},{"$f":"IFERROR(INDEX(ListeCours[],MATCH(SUMPRODUCT((ListeCours[AGENDA]=EmploiDuTemps[[#Headers],[MARDI]])*(ROUNDDOWN($B43,10)>=ROUNDDOWN(ListeCours[HEURE DE DÉBUT],10))*($B43<=ListeCours[HEURE DE FIN]),ListeCours[UNIQUE]),ListeCours[UNIQUE],0),2),0)","v":0},{"$f":"IFERROR(INDEX(ListeCours[],MATCH(SUMPRODUCT((ListeCours[AGENDA]=EmploiDuTemps[[#Headers],[MERCREDI]])*(ROUNDDOWN($B43,10)>=ROUNDDOWN(ListeCours[HEURE DE DÉBUT],10))*($B43<=ListeCours[HEURE DE FIN]),ListeCours[UNIQUE]),ListeCours[UNIQUE],0),2),0)","v":0},{"$f":"IFERROR(INDEX(ListeCours[],MATCH(SUMPRODUCT((ListeCours[AGENDA]=EmploiDuTemps[[#Headers],[JEUDI]])*(ROUNDDOWN($B43,10)>=ROUNDDOWN(ListeCours[HEURE DE DÉBUT],10))*($B43<=ListeCours[HEURE DE FIN]),ListeCours[UNIQUE]),ListeCours[UNIQUE],0),2),0)","v":0},{"$f":"IFERROR(INDEX(ListeCours[],MATCH(SUMPRODUCT((ListeCours[AGENDA]=EmploiDuTemps[[#Headers],[VENDREDI]])*(ROUNDDOWN($B43,10)>=ROUNDDOWN(ListeCours[HEURE DE DÉBUT],10))*($B43<=ListeCours[HEURE DE FIN]),ListeCours[UNIQUE]),ListeCours[UNIQUE],0),2),0)","v":0},{"$f":"IFERROR(INDEX(ListeCours[],MATCH(SUMPRODUCT((ListeCours[AGENDA]=EmploiDuTemps[[#Headers],[SAMEDI]])*(ROUNDDOWN($B43,10)>=ROUNDDOWN(ListeCours[HEURE DE DÉBUT],10))*($B43<=ListeCours[HEURE DE FIN]),ListeCours[UNIQUE]),ListeCours[UNIQUE],0),2),0)","v":0}]
[null,"18:00:00",{"$f":"IFERROR(INDEX(ListeCours[],MATCH(SUMPRODUCT((ListeCours[AGENDA]=EmploiDuTemps[[#Headers],[DIMANCHE]])*(ROUNDDOWN($B44,10)>=ROUNDDOWN(ListeCours[HEURE DE DÉBUT],10))*($B44<=ListeCours[HEURE DE FIN]),ListeCours[UNIQUE]),ListeCours[UNIQUE],0),2),0)","v":0},{"$f":"IFERROR(INDEX(ListeCours[],MATCH(SUMPRODUCT((ListeCours[AGENDA]=EmploiDuTemps[[#Headers],[LUNDI]])*(ROUNDDOWN($B44,10)>=ROUNDDOWN(ListeCours[HEURE DE DÉBUT],10))*($B44<=ListeCours[HEURE DE FIN]),ListeCours[UNIQUE]),ListeCours[UNIQUE],0),2),0)","v":0},{"$f":"IFERROR(INDEX(ListeCours[],MATCH(SUMPRODUCT((ListeCours[AGENDA]=EmploiDuTemps[[#Headers],[MARDI]])*(ROUNDDOWN($B44,10)>=ROUNDDOWN(ListeCours[HEURE DE DÉBUT],10))*($B44<=ListeCours[HEURE DE FIN]),ListeCours[UNIQUE]),ListeCours[UNIQUE],0),2),0)","v":0},{"$f":"IFERROR(INDEX(ListeCours[],MATCH(SUMPRODUCT((ListeCours[AGENDA]=EmploiDuTemps[[#Headers],[MERCREDI]])*(ROUNDDOWN($B44,10)>=ROUNDDOWN(ListeCours[HEURE DE DÉBUT],10))*($B44<=ListeCours[HEURE DE FIN]),ListeCours[UNIQUE]),ListeCours[UNIQUE],0),2),0)","v":0},{"$f":"IFERROR(INDEX(ListeCours[],MATCH(SUMPRODUCT((ListeCours[AGENDA]=EmploiDuTemps[[#Headers],[JEUDI]])*(ROUNDDOWN($B44,10)>=ROUNDDOWN(ListeCours[HEURE DE DÉBUT],10))*($B44<=ListeCours[HEURE DE FIN]),ListeCours[UNIQUE]),ListeCours[UNIQUE],0),2),0)","v":0},{"$f":"IFERROR(INDEX(ListeCours[],MATCH(SUMPRODUCT((ListeCours[AGENDA]=EmploiDuTemps[[#Headers],[VENDREDI]])*(ROUNDDOWN($B44,10)>=ROUNDDOWN(ListeCours[HEURE DE DÉBUT],10))*($B44<=ListeCours[HEURE DE FIN]),ListeCours[UNIQUE]),ListeCours[UNIQUE],0),2),0)","v":0},{"$f":"IFERROR(INDEX(ListeCours[],MATCH(SUMPRODUCT((ListeCours[AGENDA]=EmploiDuTemps[[#Headers],[SAMEDI]])*(ROUNDDOWN($B44,10)>=ROUNDDOWN(ListeCours[HEURE DE DÉBUT],10))*($B44<=ListeCours[HEURE DE FIN]),ListeCours[UNIQUE]),ListeCours[UNIQUE],0),2),0)","v":0}]
[null,"18:15:00",{"$f":"IFERROR(INDEX(ListeCours[],MATCH(SUMPRODUCT((ListeCours[AGENDA]=EmploiDuTemps[[#Headers],[DIMANCHE]])*(ROUNDDOWN($B45,10)>=ROUNDDOWN(ListeCours[HEURE DE DÉBUT],10))*($B45<=ListeCours[HEURE DE FIN]),ListeCours[UNIQUE]),ListeCours[UNIQUE],0),2),0)","v":0},{"$f":"IFERROR(INDEX(ListeCours[],MATCH(SUMPRODUCT((ListeCours[AGENDA]=EmploiDuTemps[[#Headers],[LUNDI]])*(ROUNDDOWN($B45,10)>=ROUNDDOWN(ListeCours[HEURE DE DÉBUT],10))*($B45<=ListeCours[HEURE DE FIN]),ListeCours[UNIQUE]),ListeCours[UNIQUE],0),2),0)","v":0},{"$f":"IFERROR(INDEX(ListeCours[],MATCH(SUMPRODUCT((ListeCours[AGENDA]=EmploiDuTemps[[#Headers],[MARDI]])*(ROUNDDOWN($B45,10)>=ROUNDDOWN(ListeCours[HEURE DE DÉBUT],10))*($B45<=ListeCours[HEURE DE FIN]),ListeCours[UNIQUE]),ListeCours[UNIQUE],0),2),0)","v":0},{"$f":"IFERROR(INDEX(ListeCours[],MATCH(SUMPRODUCT((ListeCours[AGENDA]=EmploiDuTemps[[#Headers],[MERCREDI]])*(ROUNDDOWN($B45,10)>=ROUNDDOWN(ListeCours[HEURE DE DÉBUT],10))*($B45<=ListeCours[HEURE DE FIN]),ListeCours[UNIQUE]),ListeCours[UNIQUE],0),2),0)","v":0},{"$f":"IFERROR(INDEX(ListeCours[],MATCH(SUMPRODUCT((ListeCours[AGENDA]=EmploiDuTemps[[#Headers],[JEUDI]])*(ROUNDDOWN($B45,10)>=ROUNDDOWN(ListeCours[HEURE DE DÉBUT],10))*($B45<=ListeCours[HEURE DE FIN]),ListeCours[UNIQUE]),ListeCours[UNIQUE],0),2),0)","v":0},{"$f":"IFERROR(INDEX(ListeCours[],MATCH(SUMPRODUCT((ListeCours[AGENDA]=EmploiDuTemps[[#Headers],[VENDREDI]])*(ROUNDDOWN($B45,10)>=ROUNDDOWN(ListeCours[HEURE DE DÉBUT],10))*($B45<=ListeCours[HEURE DE FIN]),ListeCours[UNIQUE]),ListeCours[UNIQUE],0),2),0)","v":0},{"$f":"IFERROR(INDEX(ListeCours[],MATCH(SUMPRODUCT((ListeCours[AGENDA]=EmploiDuTemps[[#Headers],[SAMEDI]])*(ROUNDDOWN($B45,10)>=ROUNDDOWN(ListeCours[HEURE DE DÉBUT],10))*($B45<=ListeCours[HEURE DE FIN]),ListeCours[UNIQUE]),ListeCours[UNIQUE],0),2),0)","v":0}]
[null,"18:30:00",{"$f":"IFERROR(INDEX(ListeCours[],MATCH(SUMPRODUCT((ListeCours[AGENDA]=EmploiDuTemps[[#Headers],[DIMANCHE]])*(ROUNDDOWN($B46,10)>=ROUNDDOWN(ListeCours[HEURE DE DÉBUT],10))*($B46<=ListeCours[HEURE DE FIN]),ListeCours[UNIQUE]),ListeCours[UNIQUE],0),2),0)","v":0},{"$f":"IFERROR(INDEX(ListeCours[],MATCH(SUMPRODUCT((ListeCours[AGENDA]=EmploiDuTemps[[#Headers],[LUNDI]])*(ROUNDDOWN($B46,10)>=ROUNDDOWN(ListeCours[HEURE DE DÉBUT],10))*($B46<=ListeCours[HEURE DE FIN]),ListeCours[UNIQUE]),ListeCours[UNIQUE],0),2),0)","v":0},{"$f":"IFERROR(INDEX(ListeCours[],MATCH(SUMPRODUCT((ListeCours[AGENDA]=EmploiDuTemps[[#Headers],[MARDI]])*(ROUNDDOWN($B46,10)>=ROUNDDOWN(ListeCours[HEURE DE DÉBUT],10))*($B46<=ListeCours[HEURE DE FIN]),ListeCours[UNIQUE]),ListeCours[UNIQUE],0),2),0)","v":0},{"$f":"IFERROR(INDEX(ListeCours[],MATCH(SUMPRODUCT((ListeCours[AGENDA]=EmploiDuTemps[[#Headers],[MERCREDI]])*(ROUNDDOWN($B46,10)>=ROUNDDOWN(ListeCours[HEURE DE DÉBUT],10))*($B46<=ListeCours[HEURE DE FIN]),ListeCours[UNIQUE]),ListeCours[UNIQUE],0),2),0)","v":0},{"$f":"IFERROR(INDEX(ListeCours[],MATCH(SUMPRODUCT((ListeCours[AGENDA]=EmploiDuTemps[[#Headers],[JEUDI]])*(ROUNDDOWN($B46,10)>=ROUNDDOWN(ListeCours[HEURE DE DÉBUT],10))*($B46<=ListeCours[HEURE DE FIN]),ListeCours[UNIQUE]),ListeCours[UNIQUE],0),2),0)","v":0},{"$f":"IFERROR(INDEX(ListeCours[],MATCH(SUMPRODUCT((ListeCours[AGENDA]=EmploiDuTemps[[#Headers],[VENDREDI]])*(ROUNDDOWN($B46,10)>=ROUNDDOWN(ListeCours[HEURE DE DÉBUT],10))*($B46<=ListeCours[HEURE DE FIN]),ListeCours[UNIQUE]),ListeCours[UNIQUE],0),2),0)","v":0},{"$f":"IFERROR(INDEX(ListeCours[],MATCH(SUMPRODUCT((ListeCours[AGENDA]=EmploiDuTemps[[#Headers],[SAMEDI]])*(ROUNDDOWN($B46,10)>=ROUNDDOWN(ListeCours[HEURE DE DÉBUT],10))*($B46<=ListeCours[HEURE DE FIN]),ListeCours[UNIQUE]),ListeCours[UNIQUE],0),2),0)","v":0}]
[null,"18:45:00",{"$f":"IFERROR(INDEX(ListeCours[],MATCH(SUMPRODUCT((ListeCours[AGENDA]=EmploiDuTemps[[#Headers],[DIMANCHE]])*(ROUNDDOWN($B47,10)>=ROUNDDOWN(ListeCours[HEURE DE DÉBUT],10))*($B47<=ListeCours[HEURE DE FIN]),ListeCours[UNIQUE]),ListeCours[UNIQUE],0),2),0)","v":0},{"$f":"IFERROR(INDEX(ListeCours[],MATCH(SUMPRODUCT((ListeCours[AGENDA]=EmploiDuTemps[[#Headers],[LUNDI]])*(ROUNDDOWN($B47,10)>=ROUNDDOWN(ListeCours[HEURE DE DÉBUT],10))*($B47<=ListeCours[HEURE DE FIN]),ListeCours[UNIQUE]),ListeCours[UNIQUE],0),2),0)","v":0},{"$f":"IFERROR(INDEX(ListeCours[],MATCH(SUMPRODUCT((ListeCours[AGENDA]=EmploiDuTemps[[#Headers],[MARDI]])*(ROUNDDOWN($B47,10)>=ROUNDDOWN(ListeCours[HEURE DE DÉBUT],10))*($B47<=ListeCours[HEURE DE FIN]),ListeCours[UNIQUE]),ListeCours[UNIQUE],0),2),0)","v":0},{"$f":"IFERROR(INDEX(ListeCours[],MATCH(SUMPRODUCT((ListeCours[AGENDA]=EmploiDuTemps[[#Headers],[MERCREDI]])*(ROUNDDOWN($B47,10)>=ROUNDDOWN(ListeCours[HEURE DE DÉBUT],10))*($B47<=ListeCours[HEURE DE FIN]),ListeCours[UNIQUE]),ListeCours[UNIQUE],0),2),0)","v":0},{"$f":"IFERROR(INDEX(ListeCours[],MATCH(SUMPRODUCT((ListeCours[AGENDA]=EmploiDuTemps[[#Headers],[JEUDI]])*(ROUNDDOWN($B47,10)>=ROUNDDOWN(ListeCours[HEURE DE DÉBUT],10))*($B47<=ListeCours[HEURE DE FIN]),ListeCours[UNIQUE]),ListeCours[UNIQUE],0),2),0)","v":0},{"$f":"IFERROR(INDEX(ListeCours[],MATCH(SUMPRODUCT((ListeCours[AGENDA]=EmploiDuTemps[[#Headers],[VENDREDI]])*(ROUNDDOWN($B47,10)>=ROUNDDOWN(ListeCours[HEURE DE DÉBUT],10))*($B47<=ListeCours[HEURE DE FIN]),ListeCours[UNIQUE]),ListeCours[UNIQUE],0),2),0)","v":0},{"$f":"IFERROR(INDEX(ListeCours[],MATCH(SUMPRODUCT((ListeCours[AGENDA]=EmploiDuTemps[[#Headers],[SAMEDI]])*(ROUNDDOWN($B47,10)>=ROUNDDOWN(ListeCours[HEURE DE DÉBUT],10))*($B47<=ListeCours[HEURE DE FIN]),ListeCours[UNIQUE]),ListeCours[UNIQUE],0),2),0)","v":0}]
[null,"19:00:00",{"$f":"IFERROR(INDEX(ListeCours[],MATCH(SUMPRODUCT((ListeCours[AGENDA]=EmploiDuTemps[[#Headers],[DIMANCHE]])*(ROUNDDOWN($B48,10)>=ROUNDDOWN(ListeCours[HEURE DE DÉBUT],10))*($B48<=ListeCours[HEURE DE FIN]),ListeCours[UNIQUE]),ListeCours[UNIQUE],0),2),0)","v":0},{"$f":"IFERROR(INDEX(ListeCours[],MATCH(SUMPRODUCT((ListeCours[AGENDA]=EmploiDuTemps[[#Headers],[LUNDI]])*(ROUNDDOWN($B48,10)>=ROUNDDOWN(ListeCours[HEURE DE DÉBUT],10))*($B48<=ListeCours[HEURE DE FIN]),ListeCours[UNIQUE]),ListeCours[UNIQUE],0),2),0)","v":0},{"$f":"IFERROR(INDEX(ListeCours[],MATCH(SUMPRODUCT((ListeCours[AGENDA]=EmploiDuTemps[[#Headers],[MARDI]])*(ROUNDDOWN($B48,10)>=ROUNDDOWN(ListeCours[HEURE DE DÉBUT],10))*($B48<=ListeCours[HEURE DE FIN]),ListeCours[UNIQUE]),ListeCours[UNIQUE],0),2),0)","v":0},{"$f":"IFERROR(INDEX(ListeCours[],MATCH(SUMPRODUCT((ListeCours[AGENDA]=EmploiDuTemps[[#Headers],[MERCREDI]])*(ROUNDDOWN($B48,10)>=ROUNDDOWN(ListeCours[HEURE DE DÉBUT],10))*($B48<=ListeCours[HEURE DE FIN]),ListeCours[UNIQUE]),ListeCours[UNIQUE],0),2),0)","v":0},{"$f":"IFERROR(INDEX(ListeCours[],MATCH(SUMPRODUCT((ListeCours[AGENDA]=EmploiDuTemps[[#Headers],[JEUDI]])*(ROUNDDOWN($B48,10)>=ROUNDDOWN(ListeCours[HEURE DE DÉBUT],10))*($B48<=ListeCours[HEURE DE FIN]),ListeCours[UNIQUE]),ListeCours[UNIQUE],0),2),0)","v":0},{"$f":"IFERROR(INDEX(ListeCours[],MATCH(SUMPRODUCT((ListeCours[AGENDA]=EmploiDuTemps[[#Headers],[VENDREDI]])*(ROUNDDOWN($B48,10)>=ROUNDDOWN(ListeCours[HEURE DE DÉBUT],10))*($B48<=ListeCours[HEURE DE FIN]),ListeCours[UNIQUE]),ListeCours[UNIQUE],0),2),0)","v":0},{"$f":"IFERROR(INDEX(ListeCours[],MATCH(SUMPRODUCT((ListeCours[AGENDA]=EmploiDuTemps[[#Headers],[SAMEDI]])*(ROUNDDOWN($B48,10)>=ROUNDDOWN(ListeCours[HEURE DE DÉBUT],10))*($B48<=ListeCours[HEURE DE FIN]),ListeCours[UNIQUE]),ListeCours[UNIQUE],0),2),0)","v":0}]
[null,"19:15:00",{"$f":"IFERROR(INDEX(ListeCours[],MATCH(SUMPRODUCT((ListeCours[AGENDA]=EmploiDuTemps[[#Headers],[DIMANCHE]])*(ROUNDDOWN($B49,10)>=ROUNDDOWN(ListeCours[HEURE DE DÉBUT],10))*($B49<=ListeCours[HEURE DE FIN]),ListeCours[UNIQUE]),ListeCours[UNIQUE],0),2),0)","v":0},{"$f":"IFERROR(INDEX(ListeCours[],MATCH(SUMPRODUCT((ListeCours[AGENDA]=EmploiDuTemps[[#Headers],[LUNDI]])*(ROUNDDOWN($B49,10)>=ROUNDDOWN(ListeCours[HEURE DE DÉBUT],10))*($B49<=ListeCours[HEURE DE FIN]),ListeCours[UNIQUE]),ListeCours[UNIQUE],0),2),0)","v":0},{"$f":"IFERROR(INDEX(ListeCours[],MATCH(SUMPRODUCT((ListeCours[AGENDA]=EmploiDuTemps[[#Headers],[MARDI]])*(ROUNDDOWN($B49,10)>=ROUNDDOWN(ListeCours[HEURE DE DÉBUT],10))*($B49<=ListeCours[HEURE DE FIN]),ListeCours[UNIQUE]),ListeCours[UNIQUE],0),2),0)","v":0},{"$f":"IFERROR(INDEX(ListeCours[],MATCH(SUMPRODUCT((ListeCours[AGENDA]=EmploiDuTemps[[#Headers],[MERCREDI]])*(ROUNDDOWN($B49,10)>=ROUNDDOWN(ListeCours[HEURE DE DÉBUT],10))*($B49<=ListeCours[HEURE DE FIN]),ListeCours[UNIQUE]),ListeCours[UNIQUE],0),2),0)","v":0},{"$f":"IFERROR(INDEX(ListeCours[],MATCH(SUMPRODUCT((ListeCours[AGENDA]=EmploiDuTemps[[#Headers],[JEUDI]])*(ROUNDDOWN($B49,10)>=ROUNDDOWN(ListeCours[HEURE DE DÉBUT],10))*($B49<=ListeCours[HEURE DE FIN]),ListeCours[UNIQUE]),ListeCours[UNIQUE],0),2),0)","v":0},{"$f":"IFERROR(INDEX(ListeCours[],MATCH(SUMPRODUCT((ListeCours[AGENDA]=EmploiDuTemps[[#Headers],[VENDREDI]])*(ROUNDDOWN($B49,10)>=ROUNDDOWN(ListeCours[HEURE DE DÉBUT],10))*($B49<=ListeCours[HEURE DE FIN]),ListeCours[UNIQUE]),ListeCours[UNIQUE],0),2),0)","v":0},{"$f":"IFERROR(INDEX(ListeCours[],MATCH(SUMPRODUCT((ListeCours[AGENDA]=EmploiDuTemps[[#Headers],[SAMEDI]])*(ROUNDDOWN($B49,10)>=ROUNDDOWN(ListeCours[HEURE DE DÉBUT],10))*($B49<=ListeCours[HEURE DE FIN]),ListeCours[UNIQUE]),ListeCours[UNIQUE],0),2),0)","v":0}]
[null,"19:30:00",{"$f":"IFERROR(INDEX(ListeCours[],MATCH(SUMPRODUCT((ListeCours[AGENDA]=EmploiDuTemps[[#Headers],[DIMANCHE]])*(ROUNDDOWN($B50,10)>=ROUNDDOWN(ListeCours[HEURE DE DÉBUT],10))*($B50<=ListeCours[HEURE DE FIN]),ListeCours[UNIQUE]),ListeCours[UNIQUE],0),2),0)","v":0},{"$f":"IFERROR(INDEX(ListeCours[],MATCH(SUMPRODUCT((ListeCours[AGENDA]=EmploiDuTemps[[#Headers],[LUNDI]])*(ROUNDDOWN($B50,10)>=ROUNDDOWN(ListeCours[HEURE DE DÉBUT],10))*($B50<=ListeCours[HEURE DE FIN]),ListeCours[UNIQUE]),ListeCours[UNIQUE],0),2),0)","v":0},{"$f":"IFERROR(INDEX(ListeCours[],MATCH(SUMPRODUCT((ListeCours[AGENDA]=EmploiDuTemps[[#Headers],[MARDI]])*(ROUNDDOWN($B50,10)>=ROUNDDOWN(ListeCours[HEURE DE DÉBUT],10))*($B50<=ListeCours[HEURE DE FIN]),ListeCours[UNIQUE]),ListeCours[UNIQUE],0),2),0)","v":0},{"$f":"IFERROR(INDEX(ListeCours[],MATCH(SUMPRODUCT((ListeCours[AGENDA]=EmploiDuTemps[[#Headers],[MERCREDI]])*(ROUNDDOWN($B50,10)>=ROUNDDOWN(ListeCours[HEURE DE DÉBUT],10))*($B50<=ListeCours[HEURE DE FIN]),ListeCours[UNIQUE]),ListeCours[UNIQUE],0),2),0)","v":0},{"$f":"IFERROR(INDEX(ListeCours[],MATCH(SUMPRODUCT((ListeCours[AGENDA]=EmploiDuTemps[[#Headers],[JEUDI]])*(ROUNDDOWN($B50,10)>=ROUNDDOWN(ListeCours[HEURE DE DÉBUT],10))*($B50<=ListeCours[HEURE DE FIN]),ListeCours[UNIQUE]),ListeCours[UNIQUE],0),2),0)","v":0},{"$f":"IFERROR(INDEX(ListeCours[],MATCH(SUMPRODUCT((ListeCours[AGENDA]=EmploiDuTemps[[#Headers],[VENDREDI]])*(ROUNDDOWN($B50,10)>=ROUNDDOWN(ListeCours[HEURE DE DÉBUT],10))*($B50<=ListeCours[HEURE DE FIN]),ListeCours[UNIQUE]),ListeCours[UNIQUE],0),2),0)","v":0},{"$f":"IFERROR(INDEX(ListeCours[],MATCH(SUMPRODUCT((ListeCours[AGENDA]=EmploiDuTemps[[#Headers],[SAMEDI]])*(ROUNDDOWN($B50,10)>=ROUNDDOWN(ListeCours[HEURE DE DÉBUT],10))*($B50<=ListeCours[HEURE DE FIN]),ListeCours[UNIQUE]),ListeCours[UNIQUE],0),2),0)","v":0}]
[null,"19:45:00",{"$f":"IFERROR(INDEX(ListeCours[],MATCH(SUMPRODUCT((ListeCours[AGENDA]=EmploiDuTemps[[#Headers],[DIMANCHE]])*(ROUNDDOWN($B51,10)>=ROUNDDOWN(ListeCours[HEURE DE DÉBUT],10))*($B51<=ListeCours[HEURE DE FIN]),ListeCours[UNIQUE]),ListeCours[UNIQUE],0),2),0)","v":0},{"$f":"IFERROR(INDEX(ListeCours[],MATCH(SUMPRODUCT((ListeCours[AGENDA]=EmploiDuTemps[[#Headers],[LUNDI]])*(ROUNDDOWN($B51,10)>=ROUNDDOWN(ListeCours[HEURE DE DÉBUT],10))*($B51<=ListeCours[HEURE DE FIN]),ListeCours[UNIQUE]),ListeCours[UNIQUE],0),2),0)","v":0},{"$f":"IFERROR(INDEX(ListeCours[],MATCH(SUMPRODUCT((ListeCours[AGENDA]=EmploiDuTemps[[#Headers],[MARDI]])*(ROUNDDOWN($B51,10)>=ROUNDDOWN(ListeCours[HEURE DE DÉBUT],10))*($B51<=ListeCours[HEURE DE FIN]),ListeCours[UNIQUE]),ListeCours[UNIQUE],0),2),0)","v":0},{"$f":"IFERROR(INDEX(ListeCours[],MATCH(SUMPRODUCT((ListeCours[AGENDA]=EmploiDuTemps[[#Headers],[MERCREDI]])*(ROUNDDOWN($B51,10)>=ROUNDDOWN(ListeCours[HEURE DE DÉBUT],10))*($B51<=ListeCours[HEURE DE FIN]),ListeCours[UNIQUE]),ListeCours[UNIQUE],0),2),0)","v":0},{"$f":"IFERROR(INDEX(ListeCours[],MATCH(SUMPRODUCT((ListeCours[AGENDA]=EmploiDuTemps[[#Headers],[JEUDI]])*(ROUNDDOWN($B51,10)>=ROUNDDOWN(ListeCours[HEURE DE DÉBUT],10))*($B51<=ListeCours[HEURE DE FIN]),ListeCours[UNIQUE]),ListeCours[UNIQUE],0),2),0)","v":0},{"$f":"IFERROR(INDEX(ListeCours[],MATCH(SUMPRODUCT((ListeCours[AGENDA]=EmploiDuTemps[[#Headers],[VENDREDI]])*(ROUNDDOWN($B51,10)>=ROUNDDOWN(ListeCours[HEURE DE DÉBUT],10))*($B51<=ListeCours[HEURE DE FIN]),ListeCours[UNIQUE]),ListeCours[UNIQUE],0),2),0)","v":0},{"$f":"IFERROR(INDEX(ListeCours[],MATCH(SUMPRODUCT((ListeCours[AGENDA]=EmploiDuTemps[[#Headers],[SAMEDI]])*(ROUNDDOWN($B51,10)>=ROUNDDOWN(ListeCours[HEURE DE DÉBUT],10))*($B51<=ListeCours[HEURE DE FIN]),ListeCours[UNIQUE]),ListeCours[UNIQUE],0),2),0)","v":0}]
[null,"20:00:00",{"$f":"IFERROR(INDEX(ListeCours[],MATCH(SUMPRODUCT((ListeCours[AGENDA]=EmploiDuTemps[[#Headers],[DIMANCHE]])*(ROUNDDOWN($B52,10)>=ROUNDDOWN(ListeCours[HEURE DE DÉBUT],10))*($B52<=ListeCours[HEURE DE FIN]),ListeCours[UNIQUE]),ListeCours[UNIQUE],0),2),0)","v":0},{"$f":"IFERROR(INDEX(ListeCours[],MATCH(SUMPRODUCT((ListeCours[AGENDA]=EmploiDuTemps[[#Headers],[LUNDI]])*(ROUNDDOWN($B52,10)>=ROUNDDOWN(ListeCours[HEURE DE DÉBUT],10))*($B52<=ListeCours[HEURE DE FIN]),ListeCours[UNIQUE]),ListeCours[UNIQUE],0),2),0)","v":0},{"$f":"IFERROR(INDEX(ListeCours[],MATCH(SUMPRODUCT((ListeCours[AGENDA]=EmploiDuTemps[[#Headers],[MARDI]])*(ROUNDDOWN($B52,10)>=ROUNDDOWN(ListeCours[HEURE DE DÉBUT],10))*($B52<=ListeCours[HEURE DE FIN]),ListeCours[UNIQUE]),ListeCours[UNIQUE],0),2),0)","v":0},{"$f":"IFERROR(INDEX(ListeCours[],MATCH(SUMPRODUCT((ListeCours[AGENDA]=EmploiDuTemps[[#Headers],[MERCREDI]])*(ROUNDDOWN($B52,10)>=ROUNDDOWN(ListeCours[HEURE DE DÉBUT],10))*($B52<=ListeCours[HEURE DE FIN]),ListeCours[UNIQUE]),ListeCours[UNIQUE],0),2),0)","v":0},{"$f":"IFERROR(INDEX(ListeCours[],MATCH(SUMPRODUCT((ListeCours[AGENDA]=EmploiDuTemps[[#Headers],[JEUDI]])*(ROUNDDOWN($B52,10)>=ROUNDDOWN(ListeCours[HEURE DE DÉBUT],10))*($B52<=ListeCours[HEURE DE FIN]),ListeCours[UNIQUE]),ListeCours[UNIQUE],0),2),0)","v":0},{"$f":"IFERROR(INDEX(ListeCours[],MATCH(SUMPRODUCT((ListeCours[AGENDA]=EmploiDuTemps[[#Headers],[VENDREDI]])*(ROUNDDOWN($B52,10)>=ROUNDDOWN(ListeCours[HEURE DE DÉBUT],10))*($B52<=ListeCours[HEURE DE FIN]),ListeCours[UNIQUE]),ListeCours[UNIQUE],0),2),0)","v":0},{"$f":"IFERROR(INDEX(ListeCours[],MATCH(SUMPRODUCT((ListeCours[AGENDA]=EmploiDuTemps[[#Headers],[SAMEDI]])*(ROUNDDOWN($B52,10)>=ROUNDDOWN(ListeCours[HEURE DE DÉBUT],10))*($B52<=ListeCours[HEURE DE FIN]),ListeCours[UNIQUE]),ListeCours[UNIQUE],0),2),0)","v":0}]
[null,"20:15:00",{"$f":"IFERROR(INDEX(ListeCours[],MATCH(SUMPRODUCT((ListeCours[AGENDA]=EmploiDuTemps[[#Headers],[DIMANCHE]])*(ROUNDDOWN($B53,10)>=ROUNDDOWN(ListeCours[HEURE DE DÉBUT],10))*($B53<=ListeCours[HEURE DE FIN]),ListeCours[UNIQUE]),ListeCours[UNIQUE],0),2),0)","v":0},{"$f":"IFERROR(INDEX(ListeCours[],MATCH(SUMPRODUCT((ListeCours[AGENDA]=EmploiDuTemps[[#Headers],[LUNDI]])*(ROUNDDOWN($B53,10)>=ROUNDDOWN(ListeCours[HEURE DE DÉBUT],10))*($B53<=ListeCours[HEURE DE FIN]),ListeCours[UNIQUE]),ListeCours[UNIQUE],0),2),0)","v":0},{"$f":"IFERROR(INDEX(ListeCours[],MATCH(SUMPRODUCT((ListeCours[AGENDA]=EmploiDuTemps[[#Headers],[MARDI]])*(ROUNDDOWN($B53,10)>=ROUNDDOWN(ListeCours[HEURE DE DÉBUT],10))*($B53<=ListeCours[HEURE DE FIN]),ListeCours[UNIQUE]),ListeCours[UNIQUE],0),2),0)","v":0},{"$f":"IFERROR(INDEX(ListeCours[],MATCH(SUMPRODUCT((ListeCours[AGENDA]=EmploiDuTemps[[#Headers],[MERCREDI]])*(ROUNDDOWN($B53,10)>=ROUNDDOWN(ListeCours[HEURE DE DÉBUT],10))*($B53<=ListeCours[HEURE DE FIN]),ListeCours[UNIQUE]),ListeCours[UNIQUE],0),2),0)","v":0},{"$f":"IFERROR(INDEX(ListeCours[],MATCH(SUMPRODUCT((ListeCours[AGENDA]=EmploiDuTemps[[#Headers],[JEUDI]])*(ROUNDDOWN($B53,10)>=ROUNDDOWN(ListeCours[HEURE DE DÉBUT],10))*($B53<=ListeCours[HEURE DE FIN]),ListeCours[UNIQUE]),ListeCours[UNIQUE],0),2),0)","v":0},{"$f":"IFERROR(INDEX(ListeCours[],MATCH(SUMPRODUCT((ListeCours[AGENDA]=EmploiDuTemps[[#Headers],[VENDREDI]])*(ROUNDDOWN($B53,10)>=ROUNDDOWN(ListeCours[HEURE DE DÉBUT],10))*($B53<=ListeCours[HEURE DE FIN]),ListeCours[UNIQUE]),ListeCours[UNIQUE],0),2),0)","v":0},{"$f":"IFERROR(INDEX(ListeCours[],MATCH(SUMPRODUCT((ListeCours[AGENDA]=EmploiDuTemps[[#Headers],[SAMEDI]])*(ROUNDDOWN($B53,10)>=ROUNDDOWN(ListeCours[HEURE DE DÉBUT],10))*($B53<=ListeCours[HEURE DE FIN]),ListeCours[UNIQUE]),ListeCours[UNIQUE],0),2),0)","v":0}]
[null,"20:30:00",{"$f":"IFERROR(INDEX(ListeCours[],MATCH(SUMPRODUCT((ListeCours[AGENDA]=EmploiDuTemps[[#Headers],[DIMANCHE]])*(ROUNDDOWN($B54,10)>=ROUNDDOWN(ListeCours[HEURE DE DÉBUT],10))*($B54<=ListeCours[HEURE DE FIN]),ListeCours[UNIQUE]),ListeCours[UNIQUE],0),2),0)","v":0},{"$f":"IFERROR(INDEX(ListeCours[],MATCH(SUMPRODUCT((ListeCours[AGENDA]=EmploiDuTemps[[#Headers],[LUNDI]])*(ROUNDDOWN($B54,10)>=ROUNDDOWN(ListeCours[HEURE DE DÉBUT],10))*($B54<=ListeCours[HEURE DE FIN]),ListeCours[UNIQUE]),ListeCours[UNIQUE],0),2),0)","v":0},{"$f":"IFERROR(INDEX(ListeCours[],MATCH(SUMPRODUCT((ListeCours[AGENDA]=EmploiDuTemps[[#Headers],[MARDI]])*(ROUNDDOWN($B54,10)>=ROUNDDOWN(ListeCours[HEURE DE DÉBUT],10))*($B54<=ListeCours[HEURE DE FIN]),ListeCours[UNIQUE]),ListeCours[UNIQUE],0),2),0)","v":0},{"$f":"IFERROR(INDEX(ListeCours[],MATCH(SUMPRODUCT((ListeCours[AGENDA]=EmploiDuTemps[[#Headers],[MERCREDI]])*(ROUNDDOWN($B54,10)>=ROUNDDOWN(ListeCours[HEURE DE DÉBUT],10))*($B54<=ListeCours[HEURE DE FIN]),ListeCours[UNIQUE]),ListeCours[UNIQUE],0),2),0)","v":0},{"$f":"IFERROR(INDEX(ListeCours[],MATCH(SUMPRODUCT((ListeCours[AGENDA]=EmploiDuTemps[[#Headers],[JEUDI]])*(ROUNDDOWN($B54,10)>=ROUNDDOWN(ListeCours[HEURE DE DÉBUT],10))*($B54<=ListeCours[HEURE DE FIN]),ListeCours[UNIQUE]),ListeCours[UNIQUE],0),2),0)","v":0},{"$f":"IFERROR(INDEX(ListeCours[],MATCH(SUMPRODUCT((ListeCours[AGENDA]=EmploiDuTemps[[#Headers],[VENDREDI]])*(ROUNDDOWN($B54,10)>=ROUNDDOWN(ListeCours[HEURE DE DÉBUT],10))*($B54<=ListeCours[HEURE DE FIN]),ListeCours[UNIQUE]),ListeCours[UNIQUE],0),2),0)","v":0},{"$f":"IFERROR(INDEX(ListeCours[],MATCH(SUMPRODUCT((ListeCours[AGENDA]=EmploiDuTemps[[#Headers],[SAMEDI]])*(ROUNDDOWN($B54,10)>=ROUNDDOWN(ListeCours[HEURE DE DÉBUT],10))*($B54<=ListeCours[HEURE DE FIN]),ListeCours[UNIQUE]),ListeCours[UNIQUE],0),2),0)","v":0}]
[null,"20:45:00",{"$f":"IFERROR(INDEX(ListeCours[],MATCH(SUMPRODUCT((ListeCours[AGENDA]=EmploiDuTemps[[#Headers],[DIMANCHE]])*(ROUNDDOWN($B55,10)>=ROUNDDOWN(ListeCours[HEURE DE DÉBUT],10))*($B55<=ListeCours[HEURE DE FIN]),ListeCours[UNIQUE]),ListeCours[UNIQUE],0),2),0)","v":0},{"$f":"IFERROR(INDEX(ListeCours[],MATCH(SUMPRODUCT((ListeCours[AGENDA]=EmploiDuTemps[[#Headers],[LUNDI]])*(ROUNDDOWN($B55,10)>=ROUNDDOWN(ListeCours[HEURE DE DÉBUT],10))*($B55<=ListeCours[HEURE DE FIN]),ListeCours[UNIQUE]),ListeCours[UNIQUE],0),2),0)","v":0},{"$f":"IFERROR(INDEX(ListeCours[],MATCH(SUMPRODUCT((ListeCours[AGENDA]=EmploiDuTemps[[#Headers],[MARDI]])*(ROUNDDOWN($B55,10)>=ROUNDDOWN(ListeCours[HEURE DE DÉBUT],10))*($B55<=ListeCours[HEURE DE FIN]),ListeCours[UNIQUE]),ListeCours[UNIQUE],0),2),0)","v":0},{"$f":"IFERROR(INDEX(ListeCours[],MATCH(SUMPRODUCT((ListeCours[AGENDA]=EmploiDuTemps[[#Headers],[MERCREDI]])*(ROUNDDOWN($B55,10)>=ROUNDDOWN(ListeCours[HEURE DE DÉBUT],10))*($B55<=ListeCours[HEURE DE FIN]),ListeCours[UNIQUE]),ListeCours[UNIQUE],0),2),0)","v":0},{"$f":"IFERROR(INDEX(ListeCours[],MATCH(SUMPRODUCT((ListeCours[AGENDA]=EmploiDuTemps[[#Headers],[JEUDI]])*(ROUNDDOWN($B55,10)>=ROUNDDOWN(ListeCours[HEURE DE DÉBUT],10))*($B55<=ListeCours[HEURE DE FIN]),ListeCours[UNIQUE]),ListeCours[UNIQUE],0),2),0)","v":0},{"$f":"IFERROR(INDEX(ListeCours[],MATCH(SUMPRODUCT((ListeCours[AGENDA]=EmploiDuTemps[[#Headers],[VENDREDI]])*(ROUNDDOWN($B55,10)>=ROUNDDOWN(ListeCours[HEURE DE DÉBUT],10))*($B55<=ListeCours[HEURE DE FIN]),ListeCours[UNIQUE]),ListeCours[UNIQUE],0),2),0)","v":0},{"$f":"IFERROR(INDEX(ListeCours[],MATCH(SUMPRODUCT((ListeCours[AGENDA]=EmploiDuTemps[[#Headers],[SAMEDI]])*(ROUNDDOWN($B55,10)>=ROUNDDOWN(ListeCours[HEURE DE DÉBUT],10))*($B55<=ListeCours[HEURE DE FIN]),ListeCours[UNIQUE]),ListeCours[UNIQUE],0),2),0)","v":0}]
[null,"21:00:00",{"$f":"IFERROR(INDEX(ListeCours[],MATCH(SUMPRODUCT((ListeCours[AGENDA]=EmploiDuTemps[[#Headers],[DIMANCHE]])*(ROUNDDOWN($B56,10)>=ROUNDDOWN(ListeCours[HEURE DE DÉBUT],10))*($B56<=ListeCours[HEURE DE FIN]),ListeCours[UNIQUE]),ListeCours[UNIQUE],0),2),0)","v":0},{"$f":"IFERROR(INDEX(ListeCours[],MATCH(SUMPRODUCT((ListeCours[AGENDA]=EmploiDuTemps[[#Headers],[LUNDI]])*(ROUNDDOWN($B56,10)>=ROUNDDOWN(ListeCours[HEURE DE DÉBUT],10))*($B56<=ListeCours[HEURE DE FIN]),ListeCours[UNIQUE]),ListeCours[UNIQUE],0),2),0)","v":0},{"$f":"IFERROR(INDEX(ListeCours[],MATCH(SUMPRODUCT((ListeCours[AGENDA]=EmploiDuTemps[[#Headers],[MARDI]])*(ROUNDDOWN($B56,10)>=ROUNDDOWN(ListeCours[HEURE DE DÉBUT],10))*($B56<=ListeCours[HEURE DE FIN]),ListeCours[UNIQUE]),ListeCours[UNIQUE],0),2),0)","v":0},{"$f":"IFERROR(INDEX(ListeCours[],MATCH(SUMPRODUCT((ListeCours[AGENDA]=EmploiDuTemps[[#Headers],[MERCREDI]])*(ROUNDDOWN($B56,10)>=ROUNDDOWN(ListeCours[HEURE DE DÉBUT],10))*($B56<=ListeCours[HEURE DE FIN]),ListeCours[UNIQUE]),ListeCours[UNIQUE],0),2),0)","v":0},{"$f":"IFERROR(INDEX(ListeCours[],MATCH(SUMPRODUCT((ListeCours[AGENDA]=EmploiDuTemps[[#Headers],[JEUDI]])*(ROUNDDOWN($B56,10)>=ROUNDDOWN(ListeCours[HEURE DE DÉBUT],10))*($B56<=ListeCours[HEURE DE FIN]),ListeCours[UNIQUE]),ListeCours[UNIQUE],0),2),0)","v":0},{"$f":"IFERROR(INDEX(ListeCours[],MATCH(SUMPRODUCT((ListeCours[AGENDA]=EmploiDuTemps[[#Headers],[VENDREDI]])*(ROUNDDOWN($B56,10)>=ROUNDDOWN(ListeCours[HEURE DE DÉBUT],10))*($B56<=ListeCours[HEURE DE FIN]),ListeCours[UNIQUE]),ListeCours[UNIQUE],0),2),0)","v":0},{"$f":"IFERROR(INDEX(ListeCours[],MATCH(SUMPRODUCT((ListeCours[AGENDA]=EmploiDuTemps[[#Headers],[SAMEDI]])*(ROUNDDOWN($B56,10)>=ROUNDDOWN(ListeCours[HEURE DE DÉBUT],10))*($B56<=ListeCours[HEURE DE FIN]),ListeCours[UNIQUE]),ListeCours[UNIQUE],0),2),0)","v":0}]

{"sheet":"Liste des cours","index":1,"n_rows":10,"n_cols":8,"rows_kept":10,"merged":[[0,1,0,5],[0,6,0,7]]}
[null,"LISTE DES COURS",{"$nulls":4},"Emploi du temps"]
[null,"COURS","ID","AGENDA","LIEU","HEURE DE DÉBUT","HEURE DE FIN","UNIQUE"]
[null,"Rédaction technique","WR-121","LUNDI","Bâtiment A","13:00:00","14:00:00",{"$f":"ROW()-ROW(ListeCours[[#Headers],[UNIQUE]])","v":1}]
[null,"Rédaction technique","WR-121","MERCREDI","Bâtiment A","13:00:00","14:00:00",{"$f":"ROW()-ROW(ListeCours[[#Headers],[UNIQUE]])","v":2}]
[null,"Prise de parole en public","SP-111","LUNDI","Bâtiment B","16:00:00","17:00:00",{"$f":"ROW()-ROW(ListeCours[[#Headers],[UNIQUE]])","v":3}]
[null,"Santé et remise en forme","HPE-295","MARDI","Bâtiment B","11:00:00","12:00:00",{"$f":"ROW()-ROW(ListeCours[[#Headers],[UNIQUE]])","v":4}]
[null,"Santé et remise en forme","HPE-295","JEUDI","Bâtiment B","11:00:00","12:00:00",{"$f":"ROW()-ROW(ListeCours[[#Headers],[UNIQUE]])","v":5}]
[null,"Algèbre","MTH-113","LUNDI","Bâtiment C","08:10:00","09:15:00",{"$f":"ROW()-ROW(ListeCours[[#Headers],[UNIQUE]])","v":6}]
[null,"Algèbre","MTH-113","MERCREDI","Bâtiment C","08:10:00","09:15:00",{"$f":"ROW()-ROW(ListeCours[[#Headers],[UNIQUE]])","v":7}]
[null,"Algèbre","MTH-113","VENDREDI","Bâtiment C","08:10:00","09:15:00",{"$f":"ROW()-ROW(ListeCours[[#Headers],[UNIQUE]])","v":8}]